{"text_format":"1","workbook":"xlsx","n_sheets":7,"sheets":["Cfg","Hebdo","Mois","Feuil1","Année","Bilan","Test_Fermeture"],"not_rendered":{"charts":0,"images":13,"macros":1,"external_links":0,"defined_names":1,"comments":2,"pivot_tables":0},"unopened":[],"bounds":{"document_bytes":16777216,"sheet_cells":100000,"rows_first":2000,"rows_last":500,"rows_between":2000,"halvings":0,"cell_chars":16384,"cell_head_chars":4096},"cells_cut":0,"cells_raw":0,"read":"whole","date_system":"1900"}

{"sheet":"Cfg","index":0,"n_rows":152,"n_cols":27,"rows_kept":152,"cut":false,"hidden":false,"merged":[]}
["Début d'Exercice",null,"Id_S","Site","Salariés","Fonctions","Début Contrat","Fin Contrat","Droit Supra","Droit CP","CACES","SST","Droits CA","Droits RTT",null,"Motifs absences","Codes couleur",null,null,"A","B","C",null,null,"Vacances fermeture"]
["2025-01-01",null,1,"Pontarlier","Pierre","Patron","2024-01-01",null,"Oui","Non","Oui","Non",16,10,null,"Congés Payés","CP",null,"2025-01-01","Vacances de Noël","Vacances de Noël","Vacances de Noël",null,null,"Maiche","Morteau","Pontarlier"]
[null,null,2,"Morteau","Elsa","Secrétariat","2024-01-02",null,"Oui","Oui","Oui","Non",20,10,null,"Congés Ancienneté","CA",null,"2025-01-02","Vacances de Noël","Vacances de Noël","Vacances de Noël",null,null,"2025-01-01","2025-01-01","2025-01-02"]
[null,null,3,"Pontarlier","Julia","Secrétariat","2024-01-03",null,"Non","Non","Non","Non",20,10,null,"Formation","FO",null,"2025-01-03","Vacances de Noël","Vacances de Noël","Vacances de Noël",null,null,"2025-01-02","2025-01-02","2025-01-03"]
[null,null,4,"Maiche","Hervé","Analyste/Programmeur","2024-01-04",null,"Oui","Non","Oui","Non",20,10,null,"Maladie","MA",null,"2025-01-04","Vacances de Noël","Vacances de Noël","Vacances de Noël",null,null,"2025-01-03","2025-01-03","2025-03-29"]
[null,null,5,"Pontarlier","Chloe","Analyste/Programmeur","2024-01-05",null,"Oui","Non","Oui","Non",20,10,null,"Maternité","MT",null,"2025-01-05","Vacances de Noël","Vacances de Noël","Vacances de Noël",null,null,"2025-04-21","2025-04-21","2025-04-01"]
[null,null,6,"Morteau","Richard","Analyste/Programmeur","2024-01-06",null,"Non","Non","Oui","Oui",20,10,null,"Parténité","PT",null,"2025-02-08","Hors Vacances","Vacances d'hiver","Hors Vacances",null,null,"2025-05-01","2025-05-01","2025-05-01"]
[null,null,7,"Maiche","Noemie","Analyste/Programmeur","2024-01-07",null,"Oui","Non","Non","Non",20,10,null,"Recup Hsup","RHS",null,"2025-02-09","Hors Vacances","Vacances d'hiver","Hors Vacances",null,null,"2025-05-08","2025-05-08","2025-05-08"]
[null,null,8,"Maiche","Didier","Commercial","2024-01-08","2029-09-29","Oui","Non","Oui","Non",20,10,null,"RTT","RTT",null,"2025-02-10","Hors Vacances","Vacances d'hiver","Hors Vacances",null,null,"2025-05-29","2025-05-29","2025-05-09"]
[null,null,9,"Pontarlier","Gustave","Commercial","2024-01-09",null,"Oui","Non","Oui","Non",20,10,null,"Sans Solde","SS",null,"2025-02-11","Hors Vacances","Vacances d'hiver","Hors Vacances",null,null,"2025-05-30","2025-05-30","2025-05-20"]
[null,null,10,"Maiche","Achille","Commercial","2024-01-10",null,"Oui","Non","Oui","Non",20,10,null,"Supra","SUP",null,"2025-02-12","Hors Vacances","Vacances d'hiver","Hors Vacances",null,null,"2025-06-09","2025-06-09","2025-07-26"]
[null,null,11,"Pontarlier","Angelo","Commercial","2025-01-11",null,"Oui","Non","Oui","Oui",20,10,null,"motif10","MO10",null,"2025-02-13","Hors Vacances","Vacances d'hiver","Hors Vacances",null,null,"2025-07-14","2025-07-14","2025-07-27"]
[null,null,12,"Maiche","Bill","Commercial","2025-01-12",null,"Oui","Non","Oui","Non",20,10,null,"motif11","MO11",null,"2025-02-14","Hors Vacances","Vacances d'hiver","Hors Vacances",null,null,"2025-07-25","2025-07-25","2025-07-28"]
[null,null,null,null,null,null,null,null,null,null,null,null,null,null,null,null,null,null,"2025-02-15","Hors Vacances","Vacances d'hiver","Vacances d'hiver",null,null,"2025-07-28","2025-07-28","2025-07-29"]
[null,null,null,null,null,null,null,null,null,null,null,null,null,null,null,null,null,null,"2025-02-16","Hors Vacances","Vacances d'hiver","Vacances d'hiver",null,null,"2025-07-29","2025-07-29","2025-07-30"]
[null,null,null,null,null,null,null,null,null,null,null,null,null,null,null,null,null,null,"2025-02-17","Hors Vacances","Vacances d'hiver","Vacances d'hiver",null,null,"2025-07-30","2025-07-30","2025-07-31"]
[null,null,null,null,null,null,null,null,null,null,null,null,null,null,null,null,null,null,"2025-02-18","Hors Vacances","Vacances d'hiver","Vacances d'hiver",null,null,"2025-07-31","2025-07-31","2025-08-01"]
[null,null,null,null,null,null,null,null,null,null,null,null,null,null,null,null,null,null,"2025-02-19","Hors Vacances","Vacances d'hiver","Vacances d'hiver",null,null,"2025-08-01","2025-08-01","2025-08-02"]
[null,null,null,null,null,null,null,null,null,null,null,null,null,null,null,null,null,null,"2025-02-20","Hors Vacances","Vacances d'hiver","Vacances d'hiver",null,null,"2025-08-04","2025-08-04","2025-08-03"]
[null,null,null,null,null,null,null,null,null,null,null,null,null,null,null,null,null,null,"2025-02-21","Hors Vacances","Vacances d'hiver","Vacances d'hiver",null,null,"2025-08-05","2025-08-05","2025-08-04"]
[null,null,null,null,null,null,null,null,null,null,null,null,null,null,null,null,null,null,"2025-02-22","Vacances d'hiver","Vacances d'hiver","Vacances d'hiver",null,null,"2025-08-06","2025-08-06","2025-08-05"]
[null,null,null,null,null,null,null,null,null,null,null,null,null,null,null,null,null,null,"2025-02-23","Vacances d'hiver","Vacances d'hiver","Vacances d'hiver",null,null,"2025-08-07","2025-08-07","2025-08-06"]
[null,null,null,null,null,null,null,null,null,null,null,null,null,null,null,null,null,null,"2025-02-24","Vacances d'hiver","Hors Vacances","Vacances d'hiver",null,null,"2025-08-08","2025-08-08","2025-08-07"]
[null,null,null,null,null,null,null,null,null,null,null,null,null,null,null,null,null,null,"2025-02-25","Vacances d'hiver","Hors Vacances","Vacances d'hiver",null,null,"2025-08-11","2025-08-11","2025-08-08"]
[null,null,null,null,null,null,null,null,null,null,null,null,null,null,null,null,null,null,"2025-02-26","Vacances d'hiver","Hors Vacances","Vacances d'hiver",null,null,"2025-08-12","2025-08-12","2025-08-09"]
[null,null,null,null,null,null,null,null,null,null,null,null,null,null,null,null,null,null,"2025-02-27","Vacances d'hiver","Hors Vacances","Vacances d'hiver",null,null,"2025-08-13","2025-08-13","2025-08-10"]
[null,null,null,null,null,null,null,null,null,null,null,null,null,null,null,null,null,null,"2025-02-28","Vacances d'hiver","Hors Vacances","Vacances d'hiver",null,null,"2025-08-14","2025-08-14","2025-08-11"]
[null,null,null,null,null,null,null,null,null,null,null,null,null,null,null,null,null,null,"2025-03-01","Vacances d'hiver","Hors Vacances","Vacances d'hiver",null,null,"2025-08-15","2025-08-15","2025-08-12"]
[null,null,null,null,null,null,null,null,null,null,null,null,null,null,null,null,null,null,"2025-03-02","Vacances d'hiver","Hors Vacances","Vacances d'hiver",null,null,"2025-08-18","2025-08-18","2025-08-13"]
[null,null,null,null,null,null,null,null,null,null,null,null,null,null,null,null,null,null,"2025-03-03","Vacances d'hiver","Hors Vacances","Hors Vacances",null,null,"2025-08-19","2025-08-19","2025-08-14"]
[null,null,null,null,null,null,null,null,null,null,null,null,null,null,null,null,null,null,"2025-03-04","Vacances d'hiver","Hors Vacances","Hors Vacances",null,null,"2025-08-20","2025-11-10","2025-08-15"]
[null,null,null,null,null,null,null,null,null,null,null,null,null,null,null,null,null,null,"2025-03-05","Vacances d'hiver","Hors Vacances","Hors Vacances",null,null,"2025-08-21","2025-11-11","2025-08-16"]
[null,null,null,null,null,null,null,null,null,null,null,null,null,null,null,null,null,null,"2025-03-06","Vacances d'hiver","Hors Vacances","Hors Vacances",null,null,"2025-08-22","2025-12-19","2025-08-17"]
[null,null,null,null,null,null,null,null,null,null,null,null,null,null,null,null,null,null,"2025-03-07","Vacances d'hiver","Hors Vacances","Hors Vacances",null,null,"2025-11-10","2025-12-22","2025-08-18"]
[null,null,null,null,null,null,null,null,null,null,null,null,null,null,null,null,null,null,"2025-03-08","Vacances d'hiver","Hors Vacances","Hors Vacances",null,null,"2025-11-11","2025-12-23","2025-08-19"]
[null,null,null,null,null,null,null,null,null,null,null,null,null,null,null,null,null,null,"2025-03-09","Vacances d'hiver","Hors Vacances","Hors Vacances",null,null,"2025-12-24","2025-12-24","2025-08-20"]
[null,null,null,null,null,null,null,null,null,null,null,null,null,null,null,null,null,null,"2025-04-05","Hors Vacances","Vacances de printemps","Hors Vacances",null,null,"2025-12-25","2025-12-25","2025-08-21"]
[null,null,null,null,null,null,null,null,null,null,null,null,null,null,null,null,null,null,"2025-04-06","Hors Vacances","Vacances de printemps","Hors Vacances",null,null,"2025-12-26","2025-12-26","2025-11-01"]
[null,null,null,null,null,null,null,null,null,null,null,null,null,null,null,null,null,null,"2025-04-07","Hors Vacances","Vacances de printemps","Hors Vacances",null,null,"2025-12-29","2025-12-29","2025-11-11"]
[null,null,null,null,null,null,null,null,null,null,null,null,null,null,null,null,null,null,"2025-04-08","Hors Vacances","Vacances de printemps","Hors Vacances",null,null,"2025-12-30","2025-12-30","2025-12-23"]
[null,null,null,null,null,null,null,null,null,null,null,null,null,null,null,null,null,null,"2025-04-09","Hors Vacances","Vacances de printemps","Hors Vacances",null,null,"2025-12-31","2025-12-31","2025-12-25"]
[null,null,null,null,null,null,null,null,null,null,null,null,null,null,null,null,null,null,"2025-04-10","Hors Vacances","Vacances de printemps","Hors Vacances",null,null,"2026-01-01","2026-01-01","2025-12-25"]
[null,null,null,null,null,null,null,null,null,null,null,null,null,null,null,null,null,null,"2025-04-11","Hors Vacances","Vacances de printemps","Hors Vacances",null,null,"2026-01-02","2026-01-02","2025-12-26"]
[null,null,null,null,null,null,null,null,null,null,null,null,null,null,null,null,null,null,"2025-04-12","Hors Vacances","Vacances de printemps","Vacances de printemps",null,null,null,null,"2025-12-27"]
[null,null,null,null,null,null,null,null,null,null,null,null,null,null,null,null,null,null,"2025-04-13","Hors Vacances","Vacances de printemps","Vacances de printemps",null,null,null,null,"2025-12-28"]
[null,null,null,null,null,null,null,null,null,null,null,null,null,null,null,null,null,null,"2025-04-14","Hors Vacances","Vacances de printemps","Vacances de printemps",null,null,null,null,"2025-12-29"]
[null,null,null,null,null,null,null,null,null,null,null,null,null,null,null,null,null,null,"2025-04-15","Hors Vacances","Vacances de printemps","Vacances de printemps",null,null,null,null,"2025-12-30"]
[null,null,null,null,null,null,null,null,null,null,null,null,null,null,null,null,null,null,"2025-04-16","Hors Vacances","Vacances de printemps","Vacances de printemps",null,null,null,null,"2025-12-31"]
[null,null,null,null,null,null,null,null,null,null,null,null,null,null,null,null,null,null,"2025-04-17","Hors Vacances","Vacances de printemps","Vacances de printemps",null,null,null,null,"2026-01-01"]
[null,null,null,null,null,null,null,null,null,null,null,null,null,null,null,null,null,null,"2025-04-18","Hors Vacances","Vacances de printemps","Vacances de printemps",null,null,null,null,"2026-01-02"]
[null,null,null,null,null,null,null,null,null,null,null,null,null,null,null,null,null,null,"2025-04-19","Vacances de printemps","Vacances de printemps","Vacances de printemps",null,null,null,null,"2026-01-03"]
[null,null,null,null,null,null,null,null,null,null,null,null,null,null,null,null,null,null,"2025-04-20","Vacances de printemps","Vacances de printemps","Vacances de printemps",null,null,null,null,"2026-01-04"]
[null,null,null,null,null,null,null,null,null,null,null,null,null,null,null,null,null,null,"2025-04-21","Vacances de printemps","Vacances de printemps","Vacances de printemps",null,null,null,null,"2026-01-05"]
[null,null,null,null,null,null,null,null,null,null,null,null,null,null,null,null,null,null,"2025-04-22","Vacances de printemps","Hors Vacances","Vacances de printemps",null,null,null,null,"2026-01-06"]
[null,null,null,null,null,null,null,null,null,null,null,null,null,null,null,null,null,null,"2025-04-23","Vacances de printemps","Hors Vacances","Vacances de printemps"]
[null,null,null,null,null,null,null,null,null,null,null,null,null,null,null,null,null,null,"2025-04-24","Vacances de printemps","Hors Vacances","Vacances de printemps"]
[null,null,null,null,null,null,null,null,null,null,null,null,null,null,null,null,null,null,"2025-04-25","Vacances de printemps","Hors Vacances","Vacances de printemps"]
[null,null,null,null,null,null,null,null,null,null,null,null,null,null,null,null,null,null,"2025-04-26","Vacances de printemps","Hors Vacances","Vacances de printemps"]
[null,null,null,null,null,null,null,null,null,null,null,null,null,null,null,null,null,null,"2025-04-27","Vacances de printemps","Hors Vacances","Vacances de printemps"]
[null,null,null,null,null,null,null,null,null,null,null,null,null,null,null,null,null,null,"2025-04-28","Vacances de printemps","Hors Vacances","Hors Vacances"]
[null,null,null,null,null,null,null,null,null,null,null,null,null,null,null,null,null,null,"2025-04-29","Vacances de printemps","Hors Vacances","Hors Vacances"]
[null,null,null,null,null,null,null,null,null,null,null,null,null,null,null,null,null,null,"2025-04-30","Vacances de printemps","Hors Vacances","Hors Vacances"]
[null,null,null,null,null,null,null,null,null,null,null,null,null,null,null,null,null,null,"2025-05-01","Vacances de printemps","Hors Vacances","Hors Vacances"]
[null,null,null,null,null,null,null,null,null,null,null,null,null,null,null,null,null,null,"2025-05-02","Vacances de printemps","Hors Vacances","Hors Vacances"]
[null,null,null,null,null,null,null,null,null,null,null,null,null,null,null,null,null,null,"2025-05-03","Vacances de printemps","Hors Vacances","Hors Vacances"]
[null,null,null,null,null,null,null,null,null,null,null,null,null,null,null,null,null,null,"2025-05-04","Vacances de printemps","Hors Vacances","Hors Vacances"]
[null,null,null,null,null,null,null,null,null,null,null,null,null,null,null,null,null,null,"2025-07-05","Vacances d'été","Vacances d'été","Vacances d'été"]
[null,null,null,null,null,null,null,null,null,null,null,null,null,null,null,null,null,null,"2025-07-06","Vacances d'été","Vacances d'été","Vacances d'été"]
[null,null,null,null,null,null,null,null,null,null,null,null,null,null,null,null,null,null,"2025-07-07","Vacances d'été","Vacances d'été","Vacances d'été"]
[null,null,null,null,null,null,null,null,null,null,null,null,null,null,null,null,null,null,"2025-07-08","Vacances d'été","Vacances d'été","Vacances d'été"]
[null,null,null,null,null,null,null,null,null,null,null,null,null,null,null,null,null,null,"2025-07-09","Vacances d'été","Vacances d'été","Vacances d'été"]
[null,null,null,null,null,null,null,null,null,null,null,null,null,null,null,null,null,null,"2025-07-10","Vacances d'été","Vacances d'été","Vacances d'été"]
[null,null,null,null,null,null,null,null,null,null,null,null,null,null,null,null,null,null,"2025-07-11","Vacances d'été","Vacances d'été","Vacances d'été"]
[null,null,null,null,null,null,null,null,null,null,null,null,null,null,null,null,null,null,"2025-07-12","Vacances d'été","Vacances d'été","Vacances d'été"]
[null,null,null,null,null,null,null,null,null,null,null,null,null,null,null,null,null,null,"2025-07-13","Vacances d'été","Vacances d'été","Vacances d'été"]
[null,null,null,null,null,null,null,null,null,null,null,null,null,null,null,null,null,null,"2025-07-14","Vacances d'été","Vacances d'été","Vacances d'été"]
[null,null,null,null,null,null,null,null,null,null,null,null,null,null,null,null,null,null,"2025-07-15","Vacances d'été","Vacances d'été","Vacances d'été"]
[null,null,null,null,null,null,null,null,null,null,null,null,null,null,null,null,null,null,"2025-07-16","Vacances d'été","Vacances d'été","Vacances d'été"]
[null,null,null,null,null,null,null,null,null,null,null,null,null,null,null,null,null,null,"2025-07-17","Vacances d'été","Vacances d'été","Vacances d'été"]
[null,null,null,null,null,null,null,null,null,null,null,null,null,null,null,null,null,null,"2025-07-18","Vacances d'été","Vacances d'été","Vacances d'été"]
[null,null,null,null,null,null,null,null,null,null,null,null,null,null,null,null,null,null,"2025-07-19","Vacances d'été","Vacances d'été","Vacances d'été"]
[null,null,null,null,null,null,null,null,null,null,null,null,null,null,null,null,null,null,"2025-07-20","Vacances d'été","Vacances d'été","Vacances d'été"]
[null,null,null,null,null,null,null,null,null,null,null,null,null,null,null,null,null,null,"2025-07-21","Vacances d'été","Vacances d'été","Vacances d'été"]
[null,null,null,null,null,null,null,null,null,null,null,null,null,null,null,null,null,null,"2025-07-22","Vacances d'été","Vacances d'été","Vacances d'été"]
[null,null,null,null,null,null,null,null,null,null,null,null,null,null,null,null,null,null,"2025-07-23","Vacances d'été","Vacances d'été","Vacances d'été"]
[null,null,null,null,null,null,null,null,null,null,null,null,null,null,null,null,null,null,"2025-07-24","Vacances d'été","Vacances d'été","Vacances d'été"]
[null,null,null,null,null,null,null,null,null,null,null,null,null,null,null,null,null,null,"2025-07-25","Vacances d'été","Vacances d'été","Vacances d'été"]
[null,null,null,null,null,null,null,null,null,null,null,null,null,null,null,null,null,null,"2025-07-26","Vacances d'été","Vacances d'été","Vacances d'été"]
[null,null,null,null,null,null,null,null,null,null,null,null,null,null,null,null,null,null,"2025-07-27","Vacances d'été","Vacances d'été","Vacances d'été"]
[null,null,null,null,null,null,null,null,null,null,null,null,null,null,null,null,null,null,"2025-07-28","Vacances d'été","Vacances d'été","Vacances d'été"]
[null,null,null,null,null,null,null,null,null,null,null,null,null,null,null,null,null,null,"2025-07-29","Vacances d'été","Vacances d'été","Vacances d'été"]
[null,null,null,null,null,null,null,null,null,null,null,null,null,null,null,null,null,null,"2025-07-30","Vacances d'été","Vacances d'été","Vacances d'été"]
[null,null,null,null,null,null,null,null,null,null,null,null,null,null,null,null,null,null,"2025-07-31","Vacances d'été","Vacances d'été","Vacances d'été"]
[null,null,null,null,null,null,null,null,null,null,null,null,null,null,null,null,null,null,"2025-08-01","Vacances d'été","Vacances d'été","Vacances d'été"]
[null,null,null,null,null,null,null,null,null,null,null,null,null,null,null,null,null,null,"2025-08-02","Vacances d'été","Vacances d'été","Vacances d'été"]
[null,null,null,null,null,null,null,null,null,null,null,null,null,null,null,null,null,null,"2025-08-03","Vacances d'été","Vacances d'été","Vacances d'été"]
[null,null,null,null,null,null,null,null,null,null,null,null,null,null,null,null,null,null,"2025-08-04","Vacances d'été","Vacances d'été","Vacances d'été"]
[null,null,null,null,null,null,null,null,null,null,null,null,null,null,null,null,null,null,"2025-08-05","Vacances d'été","Vacances d'été","Vacances d'été"]
[null,null,null,null,null,null,null,null,null,null,null,null,null,null,null,null,null,null,"2025-08-06","Vacances d'été","Vacances d'été","Vacances d'été"]
[null,null,null,null,null,null,null,null,null,null,null,null,null,null,null,null,null,null,"2025-08-07","Vacances d'été","Vacances d'été","Vacances d'été"]
[null,null,null,null,null,null,null,null,null,null,null,null,null,null,null,null,null,null,"2025-08-08","Vacances d'été","Vacances d'été","Vacances d'été"]
[null,null,null,null,null,null,null,null,null,null,null,null,null,null,null,null,null,null,"2025-08-09","Vacances d'été","Vacances d'été","Vacances d'été"]
[null,null,null,null,null,null,null,null,null,null,null,null,null,null,null,null,null,null,"2025-08-10","Vacances d'été","Vacances d'été","Vacances d'été"]
[null,null,null,null,null,null,null,null,null,null,null,null,null,null,null,null,null,null,"2025-08-11","Vacances d'été","Vacances d'été","Vacances d'été"]
[null,null,null,null,null,null,null,null,null,null,null,null,null,null,null,null,null,null,"2025-08-12","Vacances d'été","Vacances d'été","Vacances d'été"]
[null,null,null,null,null,null,null,null,null,null,null,null,null,null,null,null,null,null,"2025-08-13","Vacances d'été","Vacances d'été","Vacances d'été"]
[null,null,null,null,null,null,null,null,null,null,null,null,null,null,null,null,null,null,"2025-08-14","Vacances d'été","Vacances d'été","Vacances d'été"]
[null,null,null,null,null,null,null,null,null,null,null,null,null,null,null,null,null,null,"2025-08-15","Vacances d'été","Vacances d'été","Vacances d'été"]
[null,null,null,null,null,null,null,null,null,null,null,null,null,null,null,null,null,null,"2025-08-16","Vacances d'été","Vacances d'été","Vacances d'été"]
[null,null,null,null,null,null,null,null,null,null,null,null,null,null,null,null,null,null,"2025-08-17","Vacances d'été","Vacances d'été","Vacances d'été"]
[null,null,null,null,null,null,null,null,null,null,null,null,null,null,null,null,null,null,"2025-08-18","Vacances d'été","Vacances d'été","Vacances d'été"]
[null,null,null,null,null,null,null,null,null,null,null,null,null,null,null,null,null,null,"2025-08-19","Vacances d'été","Vacances d'été","Vacances d'été"]
[null,null,null,null,null,null,null,null,null,null,null,null,null,null,null,null,null,null,"2025-08-20","Vacances d'été","Vacances d'été","Vacances d'été"]
[null,null,null,null,null,null,null,null,null,null,null,null,null,null,null,null,null,null,"2025-08-21","Vacances d'été","Vacances d'été","Vacances d'été"]
[null,null,null,null,null,null,null,null,null,null,null,null,null,null,null,null,null,null,"2025-08-22","Vacances d'été","Vacances d'été","Vacances d'été"]
[null,null,null,null,null,null,null,null,null,null,null,null,null,null,null,null,null,null,"2025-08-23","Vacances d'été","Vacances d'été","Vacances d'été"]
[null,null,null,null,null,null,null,null,null,null,null,null,null,null,null,null,null,null,"2025-08-24","Vacances d'été","Vacances d'été","Vacances d'été"]
[null,null,null,null,null,null,null,null,null,null,null,null,null,null,null,null,null,null,"2025-08-25","Vacances d'été","Vacances d'été","Vacances d'été"]
[null,null,null,null,null,null,null,null,null,null,null,null,null,null,null,null,null,null,"2025-08-26","Vacances d'été","Vacances d'été","Vacances d'été"]
[null,null,null,null,null,null,null,null,null,null,null,null,null,null,null,null,null,null,"2025-08-27","Vacances d'été","Vacances d'été","Vacances d'été"]
[null,null,null,null,null,null,null,null,null,null,null,null,null,null,null,null,null,null,"2025-08-28","Vacances d'été","Vacances d'été","Vacances d'été"]
[null,null,null,null,null,null,null,null,null,null,null,null,null,null,null,null,null,null,"2025-08-29","Vacances d'été","Vacances d'été","Vacances d'été"]
[null,null,null,null,null,null,null,null,null,null,null,null,null,null,null,null,null,null,"2025-08-30","Vacances d'été","Vacances d'été","Vacances d'été"]
[null,null,null,null,null,null,null,null,null,null,null,null,null,null,null,null,null,null,"2025-08-31","Vacances d'été","Vacances d'été","Vacances d'été"]
[null,null,null,null,null,null,null,null,null,null,null,null,null,null,null,null,null,null,"2025-10-18","Vacances de la Toussaint","Vacances de la Toussaint","Vacances de la Toussaint"]
[null,null,null,null,null,null,null,null,null,null,null,null,null,null,null,null,null,null,"2025-10-19","Vacances de la Toussaint","Vacances de la Toussaint","Vacances de la Toussaint"]
[null,null,null,null,null,null,null,null,null,null,null,null,null,null,null,null,null,null,"2025-10-20","Vacances de la Toussaint","Vacances de la Toussaint","Vacances de la Toussaint"]
[null,null,null,null,null,null,null,null,null,null,null,null,null,null,null,null,null,null,"2025-10-21","Vacances de la Toussaint","Vacances de la Toussaint","Vacances de la Toussaint"]
[null,null,null,null,null,null,null,null,null,null,null,null,null,null,null,null,null,null,"2025-10-22","Vacances de la Toussaint","Vacances de la Toussaint","Vacances de la Toussaint"]
[null,null,null,null,null,null,null,null,null,null,null,null,null,null,null,null,null,null,"2025-10-23","Vacances de la Toussaint","Vacances de la Toussaint","Vacances de la Toussaint"]
[null,null,null,null,null,null,null,null,null,null,null,null,null,null,null,null,null,null,"2025-10-24","Vacances de la Toussaint","Vacances de la Toussaint","Vacances de la Toussaint"]
[null,null,null,null,null,null,null,null,null,null,null,null,null,null,null,null,null,null,"2025-10-25","Vacances de la Toussaint","Vacances de la Toussaint","Vacances de la Toussaint"]
[null,null,null,null,null,null,null,null,null,null,null,null,null,null,null,null,null,null,"2025-10-26","Vacances de la Toussaint","Vacances de la Toussaint","Vacances de la Toussaint"]
[null,null,null,null,null,null,null,null,null,null,null,null,null,null,null,null,null,null,"2025-10-27","Vacances de la Toussaint","Vacances de la Toussaint","Vacances de la Toussaint"]
[null,null,null,null,null,null,null,null,null,null,null,null,null,null,null,null,null,null,"2025-10-28","Vacances de la Toussaint","Vacances de la Toussaint","Vacances de la Toussaint"]
[null,null,null,null,null,null,null,null,null,null,null,null,null,null,null,null,null,null,"2025-10-29","Vacances de la Toussaint","Vacances de la Toussaint","Vacances de la Toussaint"]
[null,null,null,null,null,null,null,null,null,null,null,null,null,null,null,null,null,null,"2025-10-30","Vacances de la Toussaint","Vacances de la Toussaint","Vacances de la Toussaint"]
[null,null,null,null,null,null,null,null,null,null,null,null,null,null,null,null,null,null,"2025-10-31","Vacances de la Toussaint","Vacances de la Toussaint","Vacances de la Toussaint"]
[null,null,null,null,null,null,null,null,null,null,null,null,null,null,null,null,null,null,"2025-11-01","Vacances de la Toussaint","Vacances de la Toussaint","Vacances de la Toussaint"]
[null,null,null,null,null,null,null,null,null,null,null,null,null,null,null,null,null,null,"2025-11-02","Vacances de la Toussaint","Vacances de la Toussaint","Vacances de la Toussaint"]
[null,null,null,null,null,null,null,null,null,null,null,null,null,null,null,null,null,null,"2025-12-20","Vacances de Noël","Vacances de Noël","Vacances de Noël"]
[null,null,null,null,null,null,null,null,null,null,null,null,null,null,null,null,null,null,"2025-12-21","Vacances de Noël","Vacances de Noël","Vacances de Noël"]
[null,null,null,null,null,null,null,null,null,null,null,null,null,null,null,null,null,null,"2025-12-22","Vacances de Noël","Vacances de Noël","Vacances de Noël"]
[null,null,null,null,null,null,null,null,null,null,null,null,null,null,null,null,null,null,"2025-12-23","Vacances de Noël","Vacances de Noël","Vacances de Noël"]
[null,null,null,null,null,null,null,null,null,null,null,null,null,null,null,null,null,null,"2025-12-24","Vacances de Noël","Vacances de Noël","Vacances de Noël"]
[null,null,null,null,null,null,null,null,null,null,null,null,null,null,null,null,null,null,"2025-12-25","Vacances de Noël","Vacances de Noël","Vacances de Noël"]
[null,null,null,null,null,null,null,null,null,null,null,null,null,null,null,null,null,null,"2025-12-26","Vacances de Noël","Vacances de Noël","Vacances de Noël"]
[null,null,null,null,null,null,null,null,null,null,null,null,null,null,null,null,null,null,"2025-12-27","Vacances de Noël","Vacances de Noël","Vacances de Noël"]
[null,null,null,null,null,null,null,null,null,null,null,null,null,null,null,null,null,null,"2025-12-28","Vacances de Noël","Vacances de Noël","Vacances de Noël"]
[null,null,null,null,null,null,null,null,null,null,null,null,null,null,null,null,null,null,"2025-12-29","Vacances de Noël","Vacances de Noël","Vacances de Noël"]
[null,null,null,null,null,null,null,null,null,null,null,null,null,null,null,null,null,null,"2025-12-30","Vacances de Noël","Vacances de Noël","Vacances de Noël"]
[null,null,null,null,null,null,null,null,null,null,null,null,null,null,null,null,null,null,"2025-12-31","Vacances de Noël","Vacances de Noël","Vacances de Noël"]

{"sheet":"Hebdo","index":1,"n_rows":129,"n_cols":125,"rows_kept":129,"cut":false,"hidden":false,"merged":[[4,1,4,5],[5,1,5,5],[6,1,6,5]]}
[3]
[null,null,null,null,null,null,"2025-07-28",null,null,null,null,null,null,null,null,null,null,null,null,null,null,null,null,null,"Absence à saisir :"]
[null,null,null,null,null,null,"2025-07-28",null,null,null,null,null,null,null,null,null,null,null,null,null,null,null,null,{"$f":"G3+1","v":"2025-07-29"},null,null,null,null,null,null,null,null,null,null,null,null,null,null,null,null,{"$f":"X3+1","v":"2025-07-30"},null,null,null,null,null,null,null,null,null,null,null,null,null,null,null,null,{"$f":"AO3+1","v":"2025-07-31"},null,null,null,null,null,null,null,null,null,null,null,null,null,null,null,null,{"$f":"BF3+1","v":"2025-08-01"},null,null,null,null,null,null,null,null,null,null,null,null,null,null,null,null,{"$f":"BW3+1","v":"2025-08-02"},null,null,null,null,null,null,null,null,null,null,null,null,null,null,null,null,{"$f":"CN3+1","v":"2025-08-03"}]
[null,null,null,"Fonction","CACES","SST","06:00:00",{"$f":"G4+1/24","v":"07:00:00"},{"$f":"H4+1/24","v":"08:00:00"},{"$f":"I4+1/24","v":"09:00:00"},{"$f":"J4+1/24","v":"10:00:00"},{"$f":"K4+1/24","v":"11:00:00"},{"$f":"L4+1/24","v":"12:00:00"},{"$f":"M4+1/24","v":"13:00:00"},{"$f":"N4+1/24","v":"14:00:00"},{"$f":"O4+1/24","v":"15:00:00"},{"$f":"P4+1/24","v":"16:00:00"},{"$f":"Q4+1/24","v":"17:00:00"},{"$f":"R4+1/24","v":"18:00:00"},{"$f":"S4+1/24","v":"19:00:00"},{"$f":"T4+1/24","v":"20:00:00"},{"$f":"U4+1/24","v":"21:00:00"},{"$f":"V4+1/24","v":"22:00:00"},"06:00:00",{"$f":"X4+1/24","v":"07:00:00"},{"$f":"Y4+1/24","v":"08:00:00"},"09:00:00","10:00:00","11:00:00","12:00:00","13:00:00","14:00:00","15:00:00","16:00:00","17:00:00","18:00:00","19:00:00","20:00:00","21:00:00","22:00:00","06:00:00",{"$f":"AO4+1/24","v":"07:00:00"},{"$f":"AP4+1/24","v":"08:00:00"},"09:00:00","10:00:00","11:00:00","12:00:00","13:00:00","14:00:00","15:00:00","16:00:00","17:00:00","18:00:00","19:00:00","20:00:00","21:00:00","22:00:00","06:00:00",{"$f":"BF4+1/24","v":"07:00:00"},{"$f":"BG4+1/24","v":"08:00:00"},"09:00:00","10:00:00","11:00:00","12:00:00","13:00:00","14:00:00","15:00:00","16:00:00","17:00:00","18:00:00","19:00:00","20:00:00","21:00:00","22:00:00","06:00:00",{"$f":"BW4+1/24","v":"07:00:00"},{"$f":"BX4+1/24","v":"08:00:00"},"09:00:00","10:00:00","11:00:00","12:00:00","13:00:00","14:00:00","15:00:00","16:00:00","17:00:00","18:00:00","19:00:00","20:00:00","21:00:00","22:00:00","06:00:00",{"$f":"CN4+1/24","v":"07:00:00"},{"$f":"CO4+1/24","v":"08:00:00"},"09:00:00","10:00:00","11:00:00","12:00:00","13:00:00","14:00:00","15:00:00","16:00:00","17:00:00","18:00:00","19:00:00","20:00:00","21:00:00","22:00:00","06:00:00",{"$f":"DE4+1/24","v":"07:00:00"},{"$f":"DF4+1/24","v":"08:00:00"},"09:00:00","10:00:00","11:00:00","12:00:00","13:00:00","14:00:00","15:00:00","16:00:00","17:00:00","18:00:00","19:00:00","20:00:00","21:00:00","22:00:00"]
[null,"Fermeture Maiche"]
[null,"Fermeture Morteau",null,null,null,null,1,2,3,4,5,6,7,8,9,10,11,12,13,14,15,16,17]
[null,"Fermeture Pontarlier"]
[1]
[2]
[3]
[4]
[5]
[6]
[7]
[8]
[9]
[10]
[11,null,null,null,null,null," "]
[12,null,null,null,null,null," "]
[null,null,null,null,null,null," "]
[0,null,null,null,null,null," "]
[0,null,null,null,null,null," "]
[0,null,null,null,null,null," "]
[0,null,null,null,null,null," "]
[0,null,null,null,null,null," "]
[0,null,null,null,null,null," "]
[0,null,null,null,null,null," "]
[null,null,null,null,null,null," "]
[null,null,null,null,null,null," "]
[null,null,null,null,null,null," "]
[null,null,null,null,null,null," "]
[null,null,null,null,null,null," "]
[null,null,null,null,null,null," "]
[null,null,null,null,null,null," "]
[null,null,null,null,null,null," "]
[null,null,null,null,null,null," "]
[null,null,null,null,null,null," "]
[null,null,null,null,null,null," "]
[null,null,null,null,null,null," "]
[null,null,null,null,null,null," "]
[null,null,null,null,null,null," "]
[null,null,null,null,null,null," "]
[null,null,null,null,null,null," "]
[null,null,null,null,null,null," "]
[null,null,null,null,null,null," "]
[null,null,null,null,null,null," "]
[null,null,null,null,null,null," "]
[null,null,null,null,null,null," "]
[null,null,null,null,null,null," "]
[null,null,null,null,null,null," "]
[null,null,null,null,null,null," "]
[null,null,null,null,null,null," "]
[null,null,null,null,null,null," "]
[null,null,null,null,null,null," "]
[null,null,null,null,null,null," "]
[null,null,null,null,null,null," "]
[null,null,null,null,null,null," "]
[null,null,null,null,null,null," "]
[null,null,null,null,null,null," "]
[null,null,null,null,null,null," "]
[null,null,null,null,null,null," "]
[null,null,null,null,null,null," "]
[null,null,null,null,null,null," "]
[null,null,null,null,null,null," "]
[null,null,null,null,null,null," "]
[null,null,null,null,null,null," "]
[null,null,null,null,null,null," "]
[null,null,null,null,null,null," "]
[null,null,null,null,null,null," "]
[null,null,null,null,null,null," "]
[null,null,null,null,null,null," "]
[null,null,null,null,null,null," "]
[null,null,null,null,null,null," "]
[null,null,null,null,null,null," "]
[null,null,null,null,null,null," "]
[null,null,null,null,null,null," "]
[null,null,null,null,null,null," "]
[null,null,null,null,null,null," "]
[null,null,null,null,null,null," "]
[null,null,null,null,null,null," "]
[null,null,null,null,null,null," "]
[null,null,null,null,null,null," "]
[null,null,null,null,null,null," "]
[null,null,null,null,null,null," "]
[null,null,null,null,null,null," "]
[null,null,null,null,null,null," "]
[null,null,null,null,null,null," "]
[null,null,null,null,null,null," "]
[null,null,null,null,null,null," "]
[null,null,null,null,null,null," "]
[null,null,null,null,null,null," "]
[null,null,null,null,null,null," "]
[null,null,null,null,null,null," "]
[null,null,null,null,null,null," "]
[null,null,null,null,null,null," "]
[null,null,null,null,null,null," "]
[null,null,null,null,null,null," "]
[null,null,null,null,null,null," "]
[null,null,null,null,null,null," "]
[null,null,null,null,null,null," "]
[null,null,null,null,null,null," "]
[null,null,null,null,null,null," "]
[null,null,null,null,null,null," "]
[null,null,null,null,null,null," "]
[null,null,null,null,null,null," "]
[null,null,null,null,null,null," "]
[null,null,null,null,null,null," "]
[null,null,null,null,null,null," "]
[null,null,null,null,null,null," "]
[null,null,null,null,null,null," "]
[null,null,null,null,null,null," "]
[null,null,null,null,null,null," "]
[null,null,null,null,null,null," "]
[null,null,null,null,null,null," "]
[null,null,null,null,null,null," "]
[null,null,null,null,null,null," "]
[null,null,null,null,null,null," "]
[null,null,null,null,null,null," "]
[null,null,null,null,null,null," "]
[null,null,null,null,null,null," "]
[null,null,null,null,null,null," "]
[null,null,null,null,null,null," "]
[null,null,null,null,null,null," "]
[null,null,null,null,null,null," "]
[null,null,null,null,null,null," "]
[null,null,null,null,null,null," "]
[null,null,null,null,null,null," "]
[null,null,null,null,null,null," "]
[null,null,null,null,null,null," "]

{"sheet":"Mois","index":2,"n_rows":125,"n_cols":192,"rows_kept":125,"cut":false,"hidden":false,"merged":[[4,1,4,5],[5,1,5,5],[6,1,6,5]]}
[6]
[null,null,null,null,null,null,"août 2025",null,null,null,null,null,null,null,null,null,null,null,null,null,null,null,null,null,null,null,null,null,null,null,null,null,null,null,null,"Absence à saisir :",null,null,null,null,null,null,null,null,null,null,null,null,null,null,null,null,null,null,null,null,null,null,null,null,null,null,null,null,null,null,null,null,null,null,null,null,null,null,null,null,null,null,null,null,null,null,null,null,null,null,null,null,null,null,"Absence à saisir :",null,null,null,null,null,null,null,null,null,null,null,null,null,null,null,null,null,null,null,null,null,null,null,null,null,null,null,null,null,null,null,null,null,null,null,null,null,null,null,null,null,null,null,null,null,null,null,null,null,null,null,null,null,null,null,null,null,null,null,null,null,"Absence à saisir :"]
[null,null,null,null,null,null,"août 2025",null,null,null,null,null,null,null,null,null,null,null,null,null,null,null,null,null,null,null,null,null,null,null,null,null,null,null,null,null,null,"septembre 2025",null,null,null,null,null,null,null,null,null,null,null,null,null,null,null,null,null,null,null,null,null,null,null,null,null,null,null,null,null,null,"octobre 2025",null,null,null,null,null,null,null,null,null,null,null,null,null,null,null,null,null,null,null,null,null,null,null,null,null,null,null,null,null,null,"novembre 2025",null,null,null,null,null,null,null,null,null,null,null,null,null,null,null,null,null,null,null,null,null,null,null,null,null,null,null,null,null,null,"décembre 2025",null,null,null,null,null,null,null,null,null,null,null,null,null,null,null,null,null,null,null,null,null,null,null,null,null,null,null,null,null,null,"janvier 2026"]
[null,null,null,"Fonction","CACES","SST","2025-08-01","2025-08-02","2025-08-03","2025-08-04","2025-08-05","2025-08-06","2025-08-07","2025-08-08","2025-08-09","2025-08-10","2025-08-11","2025-08-12","2025-08-13","2025-08-14","2025-08-15","2025-08-16","2025-08-17","2025-08-18","2025-08-19","2025-08-20","2025-08-21","2025-08-22","2025-08-23","2025-08-24","2025-08-25","2025-08-26","2025-08-27","2025-08-28","2025-08-29","2025-08-30","2025-08-31","2025-09-01","2025-09-02","2025-09-03","2025-09-04","2025-09-05","2025-09-06","2025-09-07","2025-09-08","2025-09-09","2025-09-10","2025-09-11","2025-09-12","2025-09-13","2025-09-14","2025-09-15","2025-09-16","2025-09-17","2025-09-18","2025-09-19","2025-09-20","2025-09-21","2025-09-22","2025-09-23","2025-09-24","2025-09-25","2025-09-26","2025-09-27","2025-09-28","2025-09-29","2025-09-30",null,"2025-10-01","2025-10-02","2025-10-03","2025-10-04","2025-10-05","2025-10-06","2025-10-07","2025-10-08","2025-10-09","2025-10-10","2025-10-11","2025-10-12","2025-10-13","2025-10-14","2025-10-15","2025-10-16","2025-10-17","2025-10-18","2025-10-19","2025-10-20","2025-10-21","2025-10-22","2025-10-23","2025-10-24","2025-10-25","2025-10-26","2025-10-27","2025-10-28","2025-10-29","2025-10-30","2025-10-31","2025-11-01","2025-11-02","2025-11-03","2025-11-04","2025-11-05","2025-11-06","2025-11-07","2025-11-08","2025-11-09","2025-11-10","2025-11-11","2025-11-12","2025-11-13","2025-11-14","2025-11-15","2025-11-16","2025-11-17","2025-11-18","2025-11-19","2025-11-20","2025-11-21","2025-11-22","2025-11-23","2025-11-24","2025-11-25","2025-11-26","2025-11-27","2025-11-28","2025-11-29","2025-11-30",null,"2025-12-01","2025-12-02","2025-12-03","2025-12-04","2025-12-05","2025-12-06","2025-12-07","2025-12-08","2025-12-09","2025-12-10","2025-12-11","2025-12-12","2025-12-13","2025-12-14","2025-12-15","2025-12-16","2025-12-17","2025-12-18","2025-12-19","2025-12-20","2025-12-21","2025-12-22","2025-12-23","2025-12-24","2025-12-25","2025-12-26","2025-12-27","2025-12-28","2025-12-29","2025-12-30","2025-12-31","2026-01-01","2026-01-02","2026-01-03","2026-01-04","2026-01-05","2026-01-06","2026-01-07","2026-01-08","2026-01-09","2026-01-10","2026-01-11","2026-01-12","2026-01-13","2026-01-14","2026-01-15","2026-01-16","2026-01-17","2026-01-18","2026-01-19","2026-01-20","2026-01-21","2026-01-22","2026-01-23","2026-01-24","2026-01-25","2026-01-26","2026-01-27","2026-01-28","2026-01-29","2026-01-30","2026-01-31"]
[null,"Fermeture Maiche",null,null,null,null,null,null,null,{"$f":"IF(WEEKDAY(J$4)=2,_xlfn.ISOWEEKNUM(J$4),\"\")","v":32},"","","","","","",33,"","","","","","",34,"","","","","","",35,"","","","","","",36,"","","","","","",37,"","","","","","",38,"","","","","","",39,"","","","","","",40,"","","","",{"$f":"IF(WEEKDAY(BS$4)=2,_xlfn.ISOWEEKNUM(BS$4),\"\")","v":""},"","",41,"","","","","","",42,"","","","","","",43,"","","","","","",44,"","","","","","",45,"","","","","","",46,"","","","","","",47,"","","","","","",48,"","","","","","","",49,"","","",{"$f":"IF(WEEKDAY(EE$4)=2,_xlfn.ISOWEEKNUM(EE$4),\"\")","v":""},"","",50,"","","","","","",51,"","","","","","",52,"","","","","","",1,"","","","","","",2,"","","","","","",3,"","","","","","",4,"","","","","","",5,"","","","",""]
[null,"Fermeture Morteaux",null,null,null,null,null,null,null,null,null,null,null,null,null,null,null,null,null,null,null,null,null,null,null,null,null,null,null,null,null,null,null,null,null,null,null," ",null,null,null,null,null,null,null,null,null,null,null,null,null,null,null,null,null,null,null,null,null,null,null,null,null,null,null,null,null,null," ",null,null,null,null,null,null,null,null,null,null,null,null,null,null,null,null,null,null,null,null,null,null,null,null,null,null,null,null,null,null," ",null,null,null,null,null,null,null,null,null,null,null,null,null,null,null,null,null,null,null,null,null,null,null,null,null,null,null,null,null,null," ",null,null,null,null,null,null,null,null,null,null,null,null,null,null,null,null,null,null,null,null,null,null,null,null,null,null,null,null,null,null," "]
[null,"Fermeture Pontarlier",null,null,null,null,null,null,null,null,null,null,null,null,null,null,null,null,null,null,null,null,null,null,null,null,null,null,null,null,null,null,null,null,null,null,null," ",null,null,null,null,null,null,null,null,null,null,null,null,null,null,null,null,null,null,null,null,null,null,null,null,null,null,null,null,null,null," ",null,null,null,null,null,null,null,null,null,null,null,null,null,null,null,null,null,null,null,null,null,null,null,null,null,null,null,null,null,null," ",null,null,null,null,null,null,null,null,null,null,null,null,null,null,null,null,null,null,null,null,null,null,null,null,null,null,null,null,null,null," ",null,null,null,null,null,null,null,null,null,null,null,null,null,null,null,null,null,null,null,null,null,null,null,null,null,null,null,null,null,null," "]
[1,null,null,null,null,null,null,null,null,null,null,null,null,null,null,null,null,null,null,null,null,null,null,null,null,null,null,null,null,null,null,null,null,null,null,null,null," ",null,null,null,null,null,null,null,null,null,null,null,null,null,null,null,null,null,null,null,null,null,null,null,null,null,null,null,null,null,null," ",null,null,null,null,null,null,null,null,null,null,null,null,null,null,null,null,null,null,null,null,null,null,null,null,null,null,null,null,null,null," ",null,null,null,null,null,null,null,null,null,null,null,null,null,null,null,null,null,null,null,null,null,null,null,null,null,null,null,null,null,null," ",null,null,null,null,null,null,null,null,null,null,null,null,null,null,null,null,null,null,null,null,null,null,null,null,null,null,null,null,null,null," "]
[2,null,null,null,null,null,null,null,null,null,null,null,null,null,null,null,null,null,null,null,null,null,null,null,null,null,null,null,null,null,null,null,null,null,null,null,null," ",null,null,null,null,null,null,null,null,null,null,null,null,null,null,null,null,null,null,null,null,null,null,null,null,null,null,null,null,null,null," ",null,null,null,null,null,null,null,null,null,null,null,null,null,null,null,null,null,null,null,null,null,null,null,null,null,null,null,null,null,null," ",null,null,null,null,null,null,null,null,null,null,null,null,null,null,null,null,null,null,null,null,null,null,null,null,null,null,null,null,null,null," ",null,null,null,null,null,null,null,null,null,null,null,null,null,null,null,null,null,null,null,null,null,null,null,null,null,null,null,null,null,null," "]
[3,null,null,null,null,null,null,null,null,null,null,null,null,null,null,null,null,null,null,null,null,null,null,null,null,null,null,null,null,null,null,null,null,null,null,null,null," ",null,null,null,null,null,null,null,null,null,null,null,null,null,null,null,null,null,null,null,null,null,null,null,null,null,null,null,null,null,null," ",null,null,null,null,null,null,null,null,null,null,null,null,null,null,null,null,null,null,null,null,null,null,null,null,null,null,null,null,null,null," ",null,null,null,null,null,null,null,null,null,null,null,null,null,null,null,null,null,null,null,null,null,null,null,null,null,null,null,null,null,null," ",null,null,null,null,null,null,null,null,null,null,null,null,null,null,null,null,null,null,null,null,null,null,null,null,null,null,null,null,null,null," "]
[4,null,null,null,null,null,null,null,null,null,null,null,null,null,null,null,null,null,null,null,null,null,null,null,null,null,null,null,null,null,null,null,null,null,null,null,null," ",null,null,null,null,null,null,null,null,null,null,null,null,null,null,null,null,null,null,null,null,null,null,null,null,null,null,null,null,null,null," ",null,null,null,null,null,null,null,null,null,null,null,null,null,null,null,null,null,null,null,null,null,null,null,null,null,null,null,null,null,null," ",null,null,null,null,null,null,null,null,null,null,null,null,null,null,null,null,null,null,null,null,null,null,null,null,null,null,null,null,null,null," ",null,null,null,null,null,null,null,null,null,null,null,null,null,null,null,null,null,null,null,null,null,null,null,null,null,null,null,null,null,null," "]
[5,null,null,null,null,null,null,null,null,null,null,null,null,null,null,null,null,null,null,null,null,null,null,null,null,null,null,null,null,null,null,null,null,null,null,null,null," ",null,null,null,null,null,null,null,null,null,null,null,null,null,null,null,null,null,null,null,null,null,null,null,null,null,null,null,null,null,null," ",null,null,null,null,null,null,null,null,null,null,null,null,null,null,null,null,null,null,null,null,null,null,null,null,null,null,null,null,null,null," ",null,null,null,null,null,null,null,null,null,null,null,null,null,null,null,null,null,null,null,null,null,null,null,null,null,null,null,null,null,null," ",null,null,null,null,null,null,null,null,null,null,null,null,null,null,null,null,null,null,null,null,null,null,null,null,null,null,null,null,null,null," "]
[6,null,null,null,null,null,null,null,null,null,null,null,null,null,null,null,null,null,null,null,null,null,null,null,null,null,null,null,null,null,null,null,null,null,null,null,null," ",null,null,null,null,null,null,null,null,null,null,null,null,null,null,null,null,null,null,null,null,null,null,null,null,null,null,null,null,null,null," ",null,null,null,null,null,null,null,null,null,null,null,null,null,null,null,null,null,null,null,null,null,null,null,null,null,null,null,null,null,null," ",null,null,null,null,null,null,null,null,null,null,null,null,null,null,null,null,null,null,null,null,null,null,null,null,null,null,null,null,null,null," ",null,null,null,null,null,null,null,null,null,null,null,null,null,null,null,null,null,null,null,null,null,null,null,null,null,null,null,null,null,null," "]
[7,null,null,null,null,null,null,null,null,null,null,null,null,null,null,null,null,null,null,null,null,null,null,null,null,null,null,null,null,null,null,null,null,null,null,null,null," ",null,null,null,null,null,null,null,null,null,null,null,null,null,null,null,null,null,null,null,null,null,null,null,null,null,null,null,null,null,null," ",null,null,null,null,null,null,null,null,null,null,null,null,null,null,null,null,null,null,null,null,null,null,null,null,null,null,null,null,null,null," ",null,null,null,null,null,null,null,null,null,null,null,null,null,null,null,null,null,null,null,null,null,null,null,null,null,null,null,null,null,null," ",null,null,null,null,null,null,null,null,null,null,null,null,null,null,null,null,null,null,null,null,null,null,null,null,null,null,null,null,null,null," "]
[8,null,null,null,null,null,null,null,null,{"$f":"IF(WEEKDAY(J$4)=2,_xlfn.ISOWEEKNUM(J$4),\"\")","v":32},"","","","","","",33,"","","","","","",34,"","","","","","",35,"","","","","","",36,"","","","","","",37,"","","","","","",38,"","","","","","",39,"","","","","","",40,"","","","","",{"$f":"IF(WEEKDAY(BT$4)=2,_xlfn.ISOWEEKNUM(BT$4),\"\")","v":""},"",41,"","","","","","",42,"","","","","","",43,"","","","","","",44,"","","","","","",45,"","","","","","",46,"","","","","","",47,"","","","","","",48,"","","","","","","",{"$f":"IF(WEEKDAY(EA$4)=2,_xlfn.ISOWEEKNUM(EA$4),\"\")","v":49},"","","","","","",50,"","","","","","",51,"",{"$f":"IF(WEEKDAY(EQ$4)=2,_xlfn.ISOWEEKNUM(EQ$4),\"\")","v":""},"","","","",52,"","","","","","",1,"","","",{"$f":"IF(WEEKDAY(FG$4)=2,_xlfn.ISOWEEKNUM(FG$4),\"\")","v":""},"","",2,"","","","","","",3,"","","","","","",4,"","","","","","",5,"","","","",""]
[9,null,null,null,null,null,null,null,null,null,null,null,null,null,null,null,null,null,null,null,null,null,null,null,null,null,null,null,null,null,null,null,null,null,null,null,null," ",null,null,null,null,null,null,null,null,null,null,null,null,null,null,null,null,null,null,null,null,null,null,null,null,null,null,null,null,null,null," ",null,null,null,null,null,null,null,null,null,null,null,null,null,null,null,null,null,null,null,null,null,null,null,null,null,null,null,null,null,null," ",null,null,null,null,null,null,null,null,null,null,null,null,null,null,null,null,null,null,null,null,null,null,null,null,null,null,null,null,null,null," ",null,null,null,null,null,null,null,null,null,null,null,null,null,null,null,null,null,null,null,null,null,null,null,null,null,null,null,null,null,null," "]
[10,null,null,null,null,null,null,null,null,null,null,null,null,null,null,null,null,null,null,null,null,null,null,null,null,null,null,null,null,null,null,null,null,null,null,null,null," ",null,null,null,null,null,null,null,null,null,null,null,null,null,null,null,null,null,null,null,null,null,null,null,null,null,null,null,null,null,null," ",null,null,null,null,null,null,null,null,null,null,null,null,null,null,null,null,null,null,null,null,null,null,null,null,null,null,null,null,null,null," ",null,null,null,null,null,null,null,null,null,null,null,null,null,null,null,null,null,null,null,null,null,null,null,null,null,null,null,null,null,null," ",null,null,null,null,null,null,null,null,null,null,null,null,null,null,null,null,null,null,null,null,null,null,null,null,null,null,null,null,null,null," "]
[11,null,null,null,null,null,null,null,null,null,null,null,null,null,null,null,null,null,null,null,null,null,null,null,null,null,null,null,null,null,null,null,null,null,null,null,null," ",null,null,null,null,null,null,null,null,null,null,null,null,null,null,null,null,null,null,null,null,null,null,null,null,null,null,null,null,null,null," ",null,null,null,null,null,null,null,null,null,null,null,null,null,null,null,null,null,null,null,null,null,null,null,null,null,null,null,null,null,null," ",null,null,null,null,null,null,null,null,null,null,null,null,null,null,null,null,null,null,null,null,null,null,null,null,null,null,null,null,null,null," ",null,null,null,null,null,null,null,null,null,null,null,null,null,null,null,null,null,null,null,null,null,null,null,null,null,null,null,null,null,null," "]
[12,null,null,null,null,null,null,null,null,null,null,null,null,null,null,null,null,null,null,null,null,null,null,null,null,null,null,null,null,null,null,null,null,null,null,null,null," ",null,null,null,null,null,null,null,null,null,null,null,null,null,null,null,null,null,null,null,null,null,null,null,null,null,null,null,null,null,null," ",null,null,null,null,null,null,null,null,null,null,null,null,null,null,null,null,null,null,null,null,null,null,null,null,null,null,null,null,null,null," ",null,null,null,null,null,null,null,null,null,null,null,null,null,null,null,null,null,null,null,null,null,null,null,null,null,null,null,null,null,null," ",null,null,null,null,null,null,null,null,null,null,null,null,null,null,null,null,null,null,null,null,null,null,null,null,null,null,null,null,null,null," "]
[null,null,null,null,null,null,null,null,null,null,null,null,null,null,null,null,null,null,null,null,null,null,null,null,null,null,null,null,null,null,null,null,null,null,null,null,null," ",null,null,null,null,null,null,null,null,null,null,null,null,null,null,null,null,null,null,null,null,null,null,null,null,null,null,null,null,null,null," ",null,null,null,null,null,null,null,null,null,null,null,null,null,null,null,null,null,null,null,null,null,null,null,null,null,null,null,null,null,null," ",null,null,null,null,null,null,null,null,null,null,null,null,null,null,null,null,null,null,null,null,null,null,null,null,null,null,null,null,null,null," ",null,null,null,null,null,null,null,null,null,null,null,null,null,null,null,null,null,null,null,null,null,null,null,null,null,null,null,null,null,null," "]
[null,null,null,null,null,null,null,null,null,null,null,null,null,null,null,null,null,null,null,null,null,null,null,null,null,null,null,null,null,null,null,null,null,null,null,null,null," ",null,null,null,null,null,null,null,null,null,null,null,null,null,null,null,null,null,null,null,null,null,null,null,null,null,null,null,null,null,null," ",null,null,null,null,null,null,null,null,null,null,null,null,null,null,null,null,null,null,null,null,null,null,null,null,null,null,null,null,null,null," ",null,null,null,null,null,null,null,null,null,null,null,null,null,null,null,null,null,null,null,null,null,null,null,null,null,null,null,null,null,null," ",null,null,null,null,null,null,null,null,null,null,null,null,null,null,null,null,null,null,null,null,null,null,null,null,null,null,null,null,null,null," "]
[null,null,null,null,null,null,null,null,null,null,null,null,null,null,null,null,null,null,null,null,null,null,null,null,null,null,null,null,null,null,null,null,null,null,null,null,null," ",null,null,null,null,null,null,null,null,null,null,null,null,null,null,null,null,null,null,null,null,null,null,null,null,null,null,null,null,null,null," ",null,null,null,null,null,null,null,null,null,null,null,null,null,null,null,null,null,null,null,null,null,null,null,null,null,null,null,null,null,null," ",null,null,null,null,null,null,null,null,null,null,null,null,null,null,null,null,null,null,null,null,null,null,null,null,null,null,null,null,null,null," ",null,null,null,null,null,null,null,null,null,null,null,null,null,null,null,null,null,null,null,null,null,null,null,null,null,null,null,null,null,null," "]
[null,null,null,null,null,null,null,null,null,null,null,null,null,null,null,null,null,null,null,null,null,null,null,null,null,null,null,null,null,null,null,null,null,null,null,null,null," ",null,null,null,null,null,null,null,null,null,null,null,null,null,null,null,null,null,null,null,null,null,null,null,null,null,null,null,null,null,null," ",null,null,null,null,null,null,null,null,null,null,null,null,null,null,null,null,null,null,null,null,null,null,null,null,null,null,null,null,null,null," ",null,null,null,null,null,null,null,null,null,null,null,null,null,null,null,null,null,null,null,null,null,null,null,null,null,null,null,null,null,null," ",null,null,null,null,null,null,null,null,null,null,null,null,null,null,null,null,null,null,null,null,null,null,null,null,null,null,null,null,null,null," "]
[null,null,null,null,null,null,null,null,null,null,null,null,null,null,null,null,null,null,null,null,null,null,null,null,null,null,null,null,null,null,null,null,null,null,null,null,null," ",null,null,null,null,null,null,null,null,null,null,null,null,null,null,null,null,null,null,null,null,null,null,null,null,null,null,null,null,null,null," ",null,null,null,null,null,null,null,null,null,null,null,null,null,null,null,null,null,null,null,null,null,null,null,null,null,null,null,null,null,null," ",null,null,null,null,null,null,null,null,null,null,null,null,null,null,null,null,null,null,null,null,null,null,null,null,null,null,null,null,null,null," ",null,null,null,null,null,null,null,null,null,null,null,null,null,null,null,null,null,null,null,null,null,null,null,null,null,null,null,null,null,null," "]
[null,null,null,null,null,null,null,null,null,{"$f":"IF(WEEKDAY(J$4)=2,_xlfn.ISOWEEKNUM(J$4),\"\")","v":32},"","","","","","",33,"","","","","","",34,"","","","","","",35,"","","","","","",36,"","","","","","",37,"","","","","","",38,"","","","","","",39,"","","","","","",40,"","","","","",{"$f":"IF(WEEKDAY(BT$4)=2,_xlfn.ISOWEEKNUM(BT$4),\"\")","v":""},"",41,"","","","","","",42,"","","","","","",43,"","","","","","",44,"","","","","","",45,"","","","","","",46,"","","","","","",47,"","","","","","",48,"","","","","","","",49,"","","","","","",50,"","","","","","",51,"",{"$f":"IF(WEEKDAY(EQ$4)=2,_xlfn.ISOWEEKNUM(EQ$4),\"\")","v":""},"","","","",52,"","","","","","",1,"","","",{"$f":"IF(WEEKDAY(FG$4)=2,_xlfn.ISOWEEKNUM(FG$4),\"\")","v":""},"","",2,"","","","","","",3,"","","","","","",4,"","","","","","",5,"","","","",""]
[null,null,null,null,null,null,null,null,null,null,null,null,null,null,null,null,null,null,null,null,null,null,null,null,null,null,null,null,null,null,null,null,null,null,null,null,null," ",null,null,null,null,null,null,null,null,null,null,null,null,null,null,null,null,null,null,null,null,null,null,null,null,null,null,null,null,null,null," ",null,null,null,null,null,null,null,null,null,null,null,null,null,null,null,null,null,null,null,null,null,null,null,null,null,null,null,null,null,null," ",null,null,null,null,null,null,null,null,null,null,null,null,null,null,null,null,null,null,null,null,null,null,null,null,null,null,null,null,null,null," ",null,null,null,null,null,null,null,null,null,null,null,null,null,null,null,null,null,null,null,null,null,null,null,null,null,null,null,null,null,null," "]
[null,null,null,null,null,null,null,null,null,null,null,null,null,null,null,null,null,null,null,null,null,null,null,null,null,null,null,null,null,null,null,null,null,null,null,null,null," ",null,null,null,null,null,null,null,null,null,null,null,null,null,null,null,null,null,null,null,null,null,null,null,null,null,null,null,null,null,null," ",null,null,null,null,null,null,null,null,null,null,null,null,null,null,null,null,null,null,null,null,null,null,null,null,null,null,null,null,null,null," ",null,null,null,null,null,null,null,null,null,null,null,null,null,null,null,null,null,null,null,null,null,null,null,null,null,null,null,null,null,null," ",null,null,null,null,null,null,null,null,null,null,null,null,null,null,null,null,null,null,null,null,null,null,null,null,null,null,null,null,null,null," "]
[null,null,null,null,null,null,null,null,null,null,null,null,null,null,null,null,null,null,null,null,null,null,null,null,null,null,null,null,null,null,null,null,null,null,null,null,null," ",null,null,null,null,null,null,null,null,null,null,null,null,null,null,null,null,null,null,null,null,null,null,null,null,null,null,null,null,null,null," ",null,null,null,null,null,null,null,null,null,null,null,null,null,null,null,null,null,null,null,null,null,null,null,null,null,null,null,null,null,null," ",null,null,null,null,null,null,null,null,null,null,null,null,null,null,null,null,null,null,null,null,null,null,null,null,null,null,null,null,null,null," ",null,null,null,null,null,null,null,null,null,null,null,null,null,null,null,null,null,null,null,null,null,null,null,null,null,null,null,null,null,null," "]
[null,null,null,null,null,null,null,null,null,null,null,null,null,null,null,null,null,null,null,null,null,null,null,null,null,null,null,null,null,null,null,null,null,null,null,null,null," ",null,null,null,null,null,null,null,null,null,null,null,null,null,null,null,null,null,null,null,null,null,null,null,null,null,null,null,null,null,null," ",null,null,null,null,null,null,null,null,null,null,null,null,null,null,null,null,null,null,null,null,null,null,null,null,null,null,null,null,null,null," ",null,null,null,null,null,null,null,null,null,null,null,null,null,null,null,null,null,null,null,null,null,null,null,null,null,null,null,null,null,null," ",null,null,null,null,null,null,null,null,null,null,null,null,null,null,null,null,null,null,null,null,null,null,null,null,null,null,null,null,null,null," "]
[null,null,null,null,null,null,null,null,null,null,null,null,null,null,null,null,null,null,null,null,null,null,null,null,null,null,null,null,null,null,null,null,null,null,null,null,null," ",null,null,null,null,null,null,null,null,null,null,null,null,null,null,null,null,null,null,null,null,null,null,null,null,null,null,null,null,null,null," ",null,null,null,null,null,null,null,null,null,null,null,null,null,null,null,null,null,null,null,null,null,null,null,null,null,null,null,null,null,null," ",null,null,null,null,null,null,null,null,null,null,null,null,null,null,null,null,null,null,null,null,null,null,null,null,null,null,null,null,null,null," ",null,null,null,null,null,null,null,null,null,null,null,null,null,null,null,null,null,null,null,null,null,null,null,null,null,null,null,null,null,null," "]
[null,null,null,null,null,null,null,null,null,null,null,null,null,null,null,null,null,null,null,null,null,null,null,null,null,null,null,null,null,null,null,null,null,null,null,null,null," ",null,null,null,null,null,null,null,null,null,null,null,null,null,null,null,null,null,null,null,null,null,null,null,null,null,null,null,null,null,null," ",null,null,null,null,null,null,null,null,null,null,null,null,null,null,null,null,null,null,null,null,null,null,null,null,null,null,null,null,null,null," ",null,null,null,null,null,null,null,null,null,null,null,null,null,null,null,null,null,null,null,null,null,null,null,null,null,null,null,null,null,null," ",null,null,null,null,null,null,null,null,null,null,null,null,null,null,null,null,null,null,null,null,null,null,null,null,null,null,null,null,null,null," "]
[null,null,null,null,null,null,null,null,null,null,null,null,null,null,null,null,null,null,null,null,null,null,null,null,null,null,null,null,null,null,null,null,null,null,null,null,null," ",null,null,null,null,null,null,null,null,null,null,null,null,null,null,null,null,null,null,null,null,null,null,null,null,null,null,null,null,null,null," ",null,null,null,null,null,null,null,null,null,null,null,null,null,null,null,null,null,null,null,null,null,null,null,null,null,null,null,null,null,null," ",null,null,null,null,null,null,null,null,null,null,null,null,null,null,null,null,null,null,null,null,null,null,null,null,null,null,null,null,null,null," ",null,null,null,null,null,null,null,null,null,null,null,null,null,null,null,null,null,null,null,null,null,null,null,null,null,null,null,null,null,null," "]
[null,null,null,null,null,null,null,null,null,null,null,null,null,null,null,null,null,null,null,null,null,null,null,null,null,null,null,null,null,null,null,null,null,null,null,null,null," ",null,null,null,null,null,null,null,null,null,null,null,null,null,null,null,null,null,null,null,null,null,null,null,null,null,null,null,null,null,null," ",null,null,null,null,null,null,null,null,null,null,null,null,null,null,null,null,null,null,null,null,null,null,null,null,null,null,null,null,null,null," ",null,null,null,null,null,null,null,null,null,null,null,null,null,null,null,null,null,null,null,null,null,null,null,null,null,null,null,null,null,null," ",null,null,null,null,null,null,null,null,null,null,null,null,null,null,null,null,null,null,null,null,null,null,null,null,null,null,null,null,null,null," "]
[null,null,null,null,null,null,null,null,null,null,null,null,null,null,null,null,null,null,null,null,null,null,null,null,null,null,null,null,null,null,null,null,null,null,null,null,null," ",null,null,null,null,null,null,null,null,null,null,null,null,null,null,null,null,null,null,null,null,null,null,null,null,null,null,null,null,null,null," ",null,null,null,null,null,null,null,null,null,null,null,null,null,null,null,null,null,null,null,null,null,null,null,null,null,null,null,null,null,null," ",null,null,null,null,null,null,null,null,null,null,null,null,null,null,null,null,null,null,null,null,null,null,null,null,null,null,null,null,null,null," ",null,null,null,null,null,null,null,null,null,null,null,null,null,null,null,null,null,null,null,null,null,null,null,null,null,null,null,null,null,null," "]
[null,null,null,null,null,null,null,null,null,{"$f":"IF(WEEKDAY(J$4)=2,_xlfn.ISOWEEKNUM(J$4),\"\")","v":32},"","","","","","",33,"","","","","","",34,"","","","","","",35,"","","","","","",36,"","","","","","",37,"","","","","","",38,"","","","","","",39,"","","","","","",40,"","","","","",{"$f":"IF(WEEKDAY(BT$4)=2,_xlfn.ISOWEEKNUM(BT$4),\"\")","v":""},"",41,"","","","","","",42,"","","","","","",43,"","","","","","",44,"","","","","","",45,"","","","","","",46,"","","","","","",47,"","","","","","",48,"","","","","","","",49,"","","","","","",50,"","","","","","",51,"",{"$f":"IF(WEEKDAY(EQ$4)=2,_xlfn.ISOWEEKNUM(EQ$4),\"\")","v":""},"","","","",52,"","","","","","",1,"","","",{"$f":"IF(WEEKDAY(FG$4)=2,_xlfn.ISOWEEKNUM(FG$4),\"\")","v":""},"","",2,"","","","","","",3,"","","","","","",4,"","","","","","",5,"","","","",""]
[null,null,null,null,null,null,null,null,null,null,null,null,null,null,null,null,null,null,null,null,null,null,null,null,null,null,null,null,null,null,null,null,null,null,null,null,null," ",null,null,null,null,null,null,null,null,null,null,null,null,null,null,null,null,null,null,null,null,null,null,null,null,null,null,null,null,null,null," ",null,null,null,null,null,null,null,null,null,null,null,null,null,null,null,null,null,null,null,null,null,null,null,null,null,null,null,null,null,null," ",null,null,null,null,null,null,null,null,null,null,null,null,null,null,null,null,null,null,null,null,null,null,null,null,null,null,null,null,null,null," ",null,null,null,null,null,null,null,null,null,null,null,null,null,null,null,null,null,null,null,null,null,null,null,null,null,null,null,null,null,null," "]
[null,null,null,null,null,null,null,null,null,null,null,null,null,null,null,null,null,null,null,null,null,null,null,null,null,null,null,null,null,null,null,null,null,null,null,null,null," ",null,null,null,null,null,null,null,null,null,null,null,null,null,null,null,null,null,null,null,null,null,null,null,null,null,null,null,null,null,null," ",null,null,null,null,null,null,null,null,null,null,null,null,null,null,null,null,null,null,null,null,null,null,null,null,null,null,null,null,null,null," ",null,null,null,null,null,null,null,null,null,null,null,null,null,null,null,null,null,null,null,null,null,null,null,null,null,null,null,null,null,null," ",null,null,null,null,null,null,null,null,null,null,null,null,null,null,null,null,null,null,null,null,null,null,null,null,null,null,null,null,null,null," "]
[null,null,null,null,null,null,null,null,null,null,null,null,null,null,null,null,null,null,null,null,null,null,null,null,null,null,null,null,null,null,null,null,null,null,null,null,null," ",null,null,null,null,null,null,null,null,null,null,null,null,null,null,null,null,null,null,null,null,null,null,null,null,null,null,null,null,null,null," ",null,null,null,null,null,null,null,null,null,null,null,null,null,null,null,null,null,null,null,null,null,null,null,null,null,null,null,null,null,null," ",null,null,null,null,null,null,null,null,null,null,null,null,null,null,null,null,null,null,null,null,null,null,null,null,null,null,null,null,null,null," ",null,null,null,null,null,null,null,null,null,null,null,null,null,null,null,null,null,null,null,null,null,null,null,null,null,null,null,null,null,null," "]
[null,null,null,null,null,null,null,null,null,null,null,null,null,null,null,null,null,null,null,null,null,null,null,null,null,null,null,null,null,null,null,null,null,null,null,null,null," ",null,null,null,null,null,null,null,null,null,null,null,null,null,null,null,null,null,null,null,null,null,null,null,null,null,null,null,null,null,null," ",null,null,null,null,null,null,null,null,null,null,null,null,null,null,null,null,null,null,null,null,null,null,null,null,null,null,null,null,null,null," ",null,null,null,null,null,null,null,null,null,null,null,null,null,null,null,null,null,null,null,null,null,null,null,null,null,null,null,null,null,null," ",null,null,null,null,null,null,null,null,null,null,null,null,null,null,null,null,null,null,null,null,null,null,null,null,null,null,null,null,null,null," "]
[null,null,null,null,null,null,null,null,null,null,null,null,null,null,null,null,null,null,null,null,null,null,null,null,null,null,null,null,null,null,null,null,null,null,null,null,null," ",null,null,null,null,null,null,null,null,null,null,null,null,null,null,null,null,null,null,null,null,null,null,null,null,null,null,null,null,null,null," ",null,null,null,null,null,null,null,null,null,null,null,null,null,null,null,null,null,null,null,null,null,null,null,null,null,null,null,null,null,null," ",null,null,null,null,null,null,null,null,null,null,null,null,null,null,null,null,null,null,null,null,null,null,null,null,null,null,null,null,null,null," ",null,null,null,null,null,null,null,null,null,null,null,null,null,null,null,null,null,null,null,null,null,null,null,null,null,null,null,null,null,null," "]
[null,null,null,null,null,null,null,null,null,null,null,null,null,null,null,null,null,null,null,null,null,null,null,null,null,null,null,null,null,null,null,null,null,null,null,null,null," ",null,null,null,null,null,null,null,null,null,null,null,null,null,null,null,null,null,null,null,null,null,null,null,null,null,null,null,null,null,null," ",null,null,null,null,null,null,null,null,null,null,null,null,null,null,null,null,null,null,null,null,null,null,null,null,null,null,null,null,null,null," ",null,null,null,null,null,null,null,null,null,null,null,null,null,null,null,null,null,null,null,null,null,null,null,null,null,null,null,null,null,null," ",null,null,null,null,null,null,null,null,null,null,null,null,null,null,null,null,null,null,null,null,null,null,null,null,null,null,null,null,null,null," "]
[null,null,null,null,null,null,null,null,null,null,null,null,null,null,null,null,null,null,null,null,null,null,null,null,null,null,null,null,null,null,null,null,null,null,null,null,null," ",null,null,null,null,null,null,null,null,null,null,null,null,null,null,null,null,null,null,null,null,null,null,null,null,null,null,null,null,null,null," ",null,null,null,null,null,null,null,null,null,null,null,null,null,null,null,null,null,null,null,null,null,null,null,null,null,null,null,null,null,null," ",null,null,null,null,null,null,null,null,null,null,null,null,null,null,null,null,null,null,null,null,null,null,null,null,null,null,null,null,null,null," ",null,null,null,null,null,null,null,null,null,null,null,null,null,null,null,null,null,null,null,null,null,null,null,null,null,null,null,null,null,null," "]
[null,null,null,null,null,null,null,null,null,null,null,null,null,null,null,null,null,null,null,null,null,null,null,null,null,null,null,null,null,null,null,null,null,null,null,null,null," ",null,null,null,null,null,null,null,null,null,null,null,null,null,null,null,null,null,null,null,null,null,null,null,null,null,null,null,null,null,null," ",null,null,null,null,null,null,null,null,null,null,null,null,null,null,null,null,null,null,null,null,null,null,null,null,null,null,null,null,null,null," ",null,null,null,null,null,null,null,null,null,null,null,null,null,null,null,null,null,null,null,null,null,null,null,null,null,null,null,null,null,null," ",null,null,null,null,null,null,null,null,null,null,null,null,null,null,null,null,null,null,null,null,null,null,null,null,null,null,null,null,null,null," "]
[null,null,null,null,null,null,null,null,null,null,null,null,null,null,null,null,null,null,null,null,null,null,null,null,null,null,null,null,null,null,null,null,null,null,null,null,null," ",null,null,null,null,null,null,null,null,null,null,null,null,null,null,null,null,null,null,null,null,null,null,null,null,null,null,null,null,null,null," ",null,null,null,null,null,null,null,null,null,null,null,null,null,null,null,null,null,null,null,null,null,null,null,null,null,null,null,null,null,null," ",null,null,null,null,null,null,null,null,null,null,null,null,null,null,null,null,null,null,null,null,null,null,null,null,null,null,null,null,null,null," ",null,null,null,null,null,null,null,null,null,null,null,null,null,null,null,null,null,null,null,null,null,null,null,null,null,null,null,null,null,null," "]
[null,null,null,null,null,null,null,null,null,{"$f":"IF(WEEKDAY(J$4)=2,_xlfn.ISOWEEKNUM(J$4),\"\")","v":32},"","","","","","",33,"","","","","","",34,"","","","","","",35,"","","","","","",36,"","","","","","",37,"","","","","","",38,"","","","","","",39,"","","","","","",40,"","","","","",{"$f":"IF(WEEKDAY(BT$4)=2,_xlfn.ISOWEEKNUM(BT$4),\"\")","v":""},"",41,"","","","","","",42,"","","","","","",43,"","","","","","",44,"","","","","","",45,"","","","","","",46,"","","","","","",47,"","","","","","",48,"","","","","","","",49,"","","","","","",50,"","","","","","",51,"",{"$f":"IF(WEEKDAY(EQ$4)=2,_xlfn.ISOWEEKNUM(EQ$4),\"\")","v":""},"","","","",52,"","","","","","",1,"","","",{"$f":"IF(WEEKDAY(FG$4)=2,_xlfn.ISOWEEKNUM(FG$4),\"\")","v":""},"","",2,"","","","","","",3,"","","","","","",4,"","","","","","",5,"","","","",""]
[null,null,null,null,null,null,null,null,null,null,null,null,null,null,null,null,null,null,null,null,null,null,null,null,null,null,null,null,null,null,null,null,null,null,null,null,null," ",null,null,null,null,null,null,null,null,null,null,null,null,null,null,null,null,null,null,null,null,null,null,null,null,null,null,null,null,null,null," ",null,null,null,null,null,null,null,null,null,null,null,null,null,null,null,null,null,null,null,null,null,null,null,null,null,null,null,null,null,null," ",null,null,null,null,null,null,null,null,null,null,null,null,null,null,null,null,null,null,null,null,null,null,null,null,null,null,null,null,null,null," ",null,null,null,null,null,null,null,null,null,null,null,null,null,null,null,null,null,null,null,null,null,null,null,null,null,null,null,null,null,null," "]
[null,null,null,null,null,null,null,null,null,null,null,null,null,null,null,null,null,null,null,null,null,null,null,null,null,null,null,null,null,null,null,null,null,null,null,null,null," ",null,null,null,null,null,null,null,null,null,null,null,null,null,null,null,null,null,null,null,null,null,null,null,null,null,null,null,null,null,null," ",null,null,null,null,null,null,null,null,null,null,null,null,null,null,null,null,null,null,null,null,null,null,null,null,null,null,null,null,null,null," ",null,null,null,null,null,null,null,null,null,null,null,null,null,null,null,null,null,null,null,null,null,null,null,null,null,null,null,null,null,null," ",null,null,null,null,null,null,null,null,null,null,null,null,null,null,null,null,null,null,null,null,null,null,null,null,null,null,null,null,null,null," "]
[null,null,null,null,null,null,null,null,null,null,null,null,null,null,null,null,null,null,null,null,null,null,null,null,null,null,null,null,null,null,null,null,null,null,null,null,null," ",null,null,null,null,null,null,null,null,null,null,null,null,null,null,null,null,null,null,null,null,null,null,null,null,null,null,null,null,null,null," ",null,null,null,null,null,null,null,null,null,null,null,null,null,null,null,null,null,null,null,null,null,null,null,null,null,null,null,null,null,null," ",null,null,null,null,null,null,null,null,null,null,null,null,null,null,null,null,null,null,null,null,null,null,null,null,null,null,null,null,null,null," ",null,null,null,null,null,null,null,null,null,null,null,null,null,null,null,null,null,null,null,null,null,null,null,null,null,null,null,null,null,null," "]
[null,null,null,null,null,null,null,null,null,null,null,null,null,null,null,null,null,null,null,null,null,null,null,null,null,null,null,null,null,null,null,null,null,null,null,null,null," ",null,null,null,null,null,null,null,null,null,null,null,null,null,null,null,null,null,null,null,null,null,null,null,null,null,null,null,null,null,null," ",null,null,null,null,null,null,null,null,null,null,null,null,null,null,null,null,null,null,null,null,null,null,null,null,null,null,null,null,null,null," ",null,null,null,null,null,null,null,null,null,null,null,null,null,null,null,null,null,null,null,null,null,null,null,null,null,null,null,null,null,null," ",null,null,null,null,null,null,null,null,null,null,null,null,null,null,null,null,null,null,null,null,null,null,null,null,null,null,null,null,null,null," "]
[null,null,null,null,null,null,null,null,null,null,null,null,null,null,null,null,null,null,null,null,null,null,null,null,null,null,null,null,null,null,null,null,null,null,null,null,null," ",null,null,null,null,null,null,null,null,null,null,null,null,null,null,null,null,null,null,null,null,null,null,null,null,null,null,null,null,null,null," ",null,null,null,null,null,null,null,null,null,null,null,null,null,null,null,null,null,null,null,null,null,null,null,null,null,null,null,null,null,null," ",null,null,null,null,null,null,null,null,null,null,null,null,null,null,null,null,null,null,null,null,null,null,null,null,null,null,null,null,null,null," ",null,null,null,null,null,null,null,null,null,null,null,null,null,null,null,null,null,null,null,null,null,null,null,null,null,null,null,null,null,null," "]
[null,null,null,null,null,null,null,null,null,null,null,null,null,null,null,null,null,null,null,null,null,null,null,null,null,null,null,null,null,null,null,null,null,null,null,null,null," ",null,null,null,null,null,null,null,null,null,null,null,null,null,null,null,null,null,null,null,null,null,null,null,null,null,null,null,null,null,null," ",null,null,null,null,null,null,null,null,null,null,null,null,null,null,null,null,null,null,null,null,null,null,null,null,null,null,null,null,null,null," ",null,null,null,null,null,null,null,null,null,null,null,null,null,null,null,null,null,null,null,null,null,null,null,null,null,null,null,null,null,null," ",null,null,null,null,null,null,null,null,null,null,null,null,null,null,null,null,null,null,null,null,null,null,null,null,null,null,null,null,null,null," "]
[null,null,null,null,null,null,null,null,null,null,null,null,null,null,null,null,null,null,null,null,null,null,null,null,null,null,null,null,null,null,null,null,null,null,null,null,null," ",null,null,null,null,null,null,null,null,null,null,null,null,null,null,null,null,null,null,null,null,null,null,null,null,null,null,null,null,null,null," ",null,null,null,null,null,null,null,null,null,null,null,null,null,null,null,null,null,null,null,null,null,null,null,null,null,null,null,null,null,null," ",null,null,null,null,null,null,null,null,null,null,null,null,null,null,null,null,null,null,null,null,null,null,null,null,null,null,null,null,null,null," ",null,null,null,null,null,null,null,null,null,null,null,null,null,null,null,null,null,null,null,null,null,null,null,null,null,null,null,null,null,null," "]
[null,null,null,null,null,null,null,null,null,null,null,null,null,null,null,null,null,null,null,null,null,null,null,null,null,null,null,null,null,null,null,null,null,null,null,null,null," ",null,null,null,null,null,null,null,null,null,null,null,null,null,null,null,null,null,null,null,null,null,null,null,null,null,null,null,null,null,null," ",null,null,null,null,null,null,null,null,null,null,null,null,null,null,null,null,null,null,null,null,null,null,null,null,null,null,null,null,null,null," ",null,null,null,null,null,null,null,null,null,null,null,null,null,null,null,null,null,null,null,null,null,null,null,null,null,null,null,null,null,null," ",null,null,null,null,null,null,null,null,null,null,null,null,null,null,null,null,null,null,null,null,null,null,null,null,null,null,null,null,null,null," "]
[null,null,null,null,null,null,null,null,null,null,null,null,null,null,null,null,null,null,null,null,null,null,null,null,null,null,null,null,null,null,null,null,null,null,null,null,null," ",null,null,null,null,null,null,null,null,null,null,null,null,null,null,null,null,null,null,null,null,null,null,null,null,null,null,null,null,null,null," ",null,null,null,null,null,null,null,null,null,null,null,null,null,null,null,null,null,null,null,null,null,null,null,null,null,null,null,null,null,null," ",null,null,null,null,null,null,null,null,null,null,null,null,null,null,null,null,null,null,null,null,null,null,null,null,null,null,null,null,null,null," ",null,null,null,null,null,null,null,null,null,null,null,null,null,null,null,null,null,null,null,null,null,null,null,null,null,null,null,null,null,null," "]
[null,null,null,null,null,null,null,null,null,{"$f":"IF(WEEKDAY(J$4)=2,_xlfn.ISOWEEKNUM(J$4),\"\")","v":32},"","","","","","",33,"","","","","","",34,"","","","","","",35,"","","","","","",36,"","","","","","",37,"","","","","","",38,"","","","","","",39,"","","","","","",40,"","","","","",{"$f":"IF(WEEKDAY(BT$4)=2,_xlfn.ISOWEEKNUM(BT$4),\"\")","v":""},"",41,"","","","","","",42,"","","","","","",43,"","","","","","",44,"","","","","","",45,"","","","","","",46,"","","","","","",47,"","","","","","",48,"","","","","","","",49,"","","","","","",50,"","","","","","",51,"",{"$f":"IF(WEEKDAY(EQ$4)=2,_xlfn.ISOWEEKNUM(EQ$4),\"\")","v":""},"","","","",52,"","","","","","",1,"","","",{"$f":"IF(WEEKDAY(FG$4)=2,_xlfn.ISOWEEKNUM(FG$4),\"\")","v":""},"","",2,"","","","","","",3,"","","","","","",4,"","","","","","",5,"","","","",""]
[null,null,null,null,null,null,null,null,null,null,null,null,null,null,null,null,null,null,null,null,null,null,null,null,null,null,null,null,null,null,null,null,null,null,null,null,null," ",null,null,null,null,null,null,null,null,null,null,null,null,null,null,null,null,null,null,null,null,null,null,null,null,null,null,null,null,null,null," ",null,null,null,null,null,null,null,null,null,null,null,null,null,null,null,null,null,null,null,null,null,null,null,null,null,null,null,null,null,null," ",null,null,null,null,null,null,null,null,null,null,null,null,null,null,null,null,null,null,null,null,null,null,null,null,null,null,null,null,null,null," ",null,null,null,null,null,null,null,null,null,null,null,null,null,null,null,null,null,null,null,null,null,null,null,null,null,null,null,null,null,null," "]
[null,null,null,null,null,null,null,null,null,null,null,null,null,null,null,null,null,null,null,null,null,null,null,null,null,null,null,null,null,null,null,null,null,null,null,null,null," ",null,null,null,null,null,null,null,null,null,null,null,null,null,null,null,null,null,null,null,null,null,null,null,null,null,null,null,null,null,null," ",null,null,null,null,null,null,null,null,null,null,null,null,null,null,null,null,null,null,null,null,null,null,null,null,null,null,null,null,null,null," ",null,null,null,null,null,null,null,null,null,null,null,null,null,null,null,null,null,null,null,null,null,null,null,null,null,null,null,null,null,null," ",null,null,null,null,null,null,null,null,null,null,null,null,null,null,null,null,null,null,null,null,null,null,null,null,null,null,null,null,null,null," "]
[null,null,null,null,null,null,null,null,null,null,null,null,null,null,null,null,null,null,null,null,null,null,null,null,null,null,null,null,null,null,null,null,null,null,null,null,null," ",null,null,null,null,null,null,null,null,null,null,null,null,null,null,null,null,null,null,null,null,null,null,null,null,null,null,null,null,null,null," ",null,null,null,null,null,null,null,null,null,null,null,null,null,null,null,null,null,null,null,null,null,null,null,null,null,null,null,null,null,null," ",null,null,null,null,null,null,null,null,null,null,null,null,null,null,null,null,null,null,null,null,null,null,null,null,null,null,null,null,null,null," ",null,null,null,null,null,null,null,null,null,null,null,null,null,null,null,null,null,null,null,null,null,null,null,null,null,null,null,null,null,null," "]
[null,null,null,null,null,null,null,null,null,null,null,null,null,null,null,null,null,null,null,null,null,null,null,null,null,null,null,null,null,null,null,null,null,null,null,null,null," ",null,null,null,null,null,null,null,null,null,null,null,null,null,null,null,null,null,null,null,null,null,null,null,null,null,null,null,null,null,null," ",null,null,null,null,null,null,null,null,null,null,null,null,null,null,null,null,null,null,null,null,null,null,null,null,null,null,null,null,null,null," ",null,null,null,null,null,null,null,null,null,null,null,null,null,null,null,null,null,null,null,null,null,null,null,null,null,null,null,null,null,null," ",null,null,null,null,null,null,null,null,null,null,null,null,null,null,null,null,null,null,null,null,null,null,null,null,null,null,null,null,null,null," "]
[null,null,null,null,null,null,null,null,null,null,null,null,null,null,null,null,null,null,null,null,null,null,null,null,null,null,null,null,null,null,null,null,null,null,null,null,null," ",null,null,null,null,null,null,null,null,null,null,null,null,null,null,null,null,null,null,null,null,null,null,null,null,null,null,null,null,null,null," ",null,null,null,null,null,null,null,null,null,null,null,null,null,null,null,null,null,null,null,null,null,null,null,null,null,null,null,null,null,null," ",null,null,null,null,null,null,null,null,null,null,null,null,null,null,null,null,null,null,null,null,null,null,null,null,null,null,null,null,null,null," ",null,null,null,null,null,null,null,null,null,null,null,null,null,null,null,null,null,null,null,null,null,null,null,null,null,null,null,null,null,null," "]
[null,null,null,null,null,null,null,null,null,null,null,null,null,null,null,null,null,null,null,null,null,null,null,null,null,null,null,null,null,null,null,null,null,null,null,null,null," ",null,null,null,null,null,null,null,null,null,null,null,null,null,null,null,null,null,null,null,null,null,null,null,null,null,null,null,null,null,null," ",null,null,null,null,null,null,null,null,null,null,null,null,null,null,null,null,null,null,null,null,null,null,null,null,null,null,null,null,null,null," ",null,null,null,null,null,null,null,null,null,null,null,null,null,null,null,null,null,null,null,null,null,null,null,null,null,null,null,null,null,null," ",null,null,null,null,null,null,null,null,null,null,null,null,null,null,null,null,null,null,null,null,null,null,null,null,null,null,null,null,null,null," "]
[null,null,null,null,null,null,null,null,null,null,null,null,null,null,null,null,null,null,null,null,null,null,null,null,null,null,null,null,null,null,null,null,null,null,null,null,null," ",null,null,null,null,null,null,null,null,null,null,null,null,null,null,null,null,null,null,null,null,null,null,null,null,null,null,null,null,null,null," ",null,null,null,null,null,null,null,null,null,null,null,null,null,null,null,null,null,null,null,null,null,null,null,null,null,null,null,null,null,null," ",null,null,null,null,null,null,null,null,null,null,null,null,null,null,null,null,null,null,null,null,null,null,null,null,null,null,null,null,null,null," ",null,null,null,null,null,null,null,null,null,null,null,null,null,null,null,null,null,null,null,null,null,null,null,null,null,null,null,null,null,null," "]
[null,null,null,null,null,null,null,null,null,null,null,null,null,null,null,null,null,null,null,null,null,null,null,null,null,null,null,null,null,null,null,null,null,null,null,null,null," ",null,null,null,null,null,null,null,null,null,null,null,null,null,null,null,null,null,null,null,null,null,null,null,null,null,null,null,null,null,null," ",null,null,null,null,null,null,null,null,null,null,null,null,null,null,null,null,null,null,null,null,null,null,null,null,null,null,null,null,null,null," ",null,null,null,null,null,null,null,null,null,null,null,null,null,null,null,null,null,null,null,null,null,null,null,null,null,null,null,null,null,null," ",null,null,null,null,null,null,null,null,null,null,null,null,null,null,null,null,null,null,null,null,null,null,null,null,null,null,null,null,null,null," "]
[null,null,null,null,null,null,null,null,null,null,null,null,null,null,null,null,null,null,null,null,null,null,null,null,null,null,null,null,null,null,null,null,null,null,null,null,null," ",null,null,null,null,null,null,null,null,null,null,null,null,null,null,null,null,null,null,null,null,null,null,null,null,null,null,null,null,null,null," ",null,null,null,null,null,null,null,null,null,null,null,null,null,null,null,null,null,null,null,null,null,null,null,null,null,null,null,null,null,null," ",null,null,null,null,null,null,null,null,null,null,null,null,null,null,null,null,null,null,null,null,null,null,null,null,null,null,null,null,null,null," ",null,null,null,null,null,null,null,null,null,null,null,null,null,null,null,null,null,null,null,null,null,null,null,null,null,null,null,null,null,null," "]
[null,null,null,null,null,null,null,null,null,{"$f":"IF(WEEKDAY(J$4)=2,_xlfn.ISOWEEKNUM(J$4),\"\")","v":32},"","","","","","",33,"","","","","","",34,"","","","","","",35,"","","","","","",36,"","","","","","",37,"","","","","","",38,"","","","","","",39,"","","","","","",40,"","","","","",{"$f":"IF(WEEKDAY(BT$4)=2,_xlfn.ISOWEEKNUM(BT$4),\"\")","v":""},"",41,"","","","","","",42,"","","","","","",43,"","","","","","",44,"","","","","","",45,"","","","","","",46,"","","","","","",47,"","","","","","",48,"","","","","","","",49,"","","","","","",50,"","","","","","",51,"",{"$f":"IF(WEEKDAY(EQ$4)=2,_xlfn.ISOWEEKNUM(EQ$4),\"\")","v":""},"","","","",52,"","","","","","",1,"","","",{"$f":"IF(WEEKDAY(FG$4)=2,_xlfn.ISOWEEKNUM(FG$4),\"\")","v":""},"","",2,"","","","","","",3,"","","","","","",4,"","","","","","",5,"","","","",""]
[null,null,null,null,null,null,null,null,null,null,null,null,null,null,null,null,null,null,null,null,null,null,null,null,null,null,null,null,null,null,null,null,null,null,null,null,null," ",null,null,null,null,null,null,null,null,null,null,null,null,null,null,null,null,null,null,null,null,null,null,null,null,null,null,null,null,null,null," ",null,null,null,null,null,null,null,null,null,null,null,null,null,null,null,null,null,null,null,null,null,null,null,null,null,null,null,null,null,null," ",null,null,null,null,null,null,null,null,null,null,null,null,null,null,null,null,null,null,null,null,null,null,null,null,null,null,null,null,null,null," ",null,null,null,null,null,null,null,null,null,null,null,null,null,null,null,null,null,null,null,null,null,null,null,null,null,null,null,null,null,null," "]
[null,null,null,null,null,null,null,null,null,null,null,null,null,null,null,null,null,null,null,null,null,null,null,null,null,null,null,null,null,null,null,null,null,null,null,null,null," ",null,null,null,null,null,null,null,null,null,null,null,null,null,null,null,null,null,null,null,null,null,null,null,null,null,null,null,null,null,null," ",null,null,null,null,null,null,null,null,null,null,null,null,null,null,null,null,null,null,null,null,null,null,null,null,null,null,null,null,null,null," ",null,null,null,null,null,null,null,null,null,null,null,null,null,null,null,null,null,null,null,null,null,null,null,null,null,null,null,null,null,null," ",null,null,null,null,null,null,null,null,null,null,null,null,null,null,null,null,null,null,null,null,null,null,null,null,null,null,null,null,null,null," "]
[null,null,null,null,null,null,null,null,null,null,null,null,null,null,null,null,null,null,null,null,null,null,null,null,null,null,null,null,null,null,null,null,null,null,null,null,null," ",null,null,null,null,null,null,null,null,null,null,null,null,null,null,null,null,null,null,null,null,null,null,null,null,null,null,null,null,null,null," ",null,null,null,null,null,null,null,null,null,null,null,null,null,null,null,null,null,null,null,null,null,null,null,null,null,null,null,null,null,null," ",null,null,null,null,null,null,null,null,null,null,null,null,null,null,null,null,null,null,null,null,null,null,null,null,null,null,null,null,null,null," ",null,null,null,null,null,null,null,null,null,null,null,null,null,null,null,null,null,null,null,null,null,null,null,null,null,null,null,null,null,null," "]
[null,null,null,null,null,null,null,null,null,null,null,null,null,null,null,null,null,null,null,null,null,null,null,null,null,null,null,null,null,null,null,null,null,null,null,null,null," ",null,null,null,null,null,null,null,null,null,null,null,null,null,null,null,null,null,null,null,null,null,null,null,null,null,null,null,null,null,null," ",null,null,null,null,null,null,null,null,null,null,null,null,null,null,null,null,null,null,null,null,null,null,null,null,null,null,null,null,null,null," ",null,null,null,null,null,null,null,null,null,null,null,null,null,null,null,null,null,null,null,null,null,null,null,null,null,null,null,null,null,null," ",null,null,null,null,null,null,null,null,null,null,null,null,null,null,null,null,null,null,null,null,null,null,null,null,null,null,null,null,null,null," "]
[null,null,null,null,null,null,null,null,null,null,null,null,null,null,null,null,null,null,null,null,null,null,null,null,null,null,null,null,null,null,null,null,null,null,null,null,null," ",null,null,null,null,null,null,null,null,null,null,null,null,null,null,null,null,null,null,null,null,null,null,null,null,null,null,null,null,null,null," ",null,null,null,null,null,null,null,null,null,null,null,null,null,null,null,null,null,null,null,null,null,null,null,null,null,null,null,null,null,null," ",null,null,null,null,null,null,null,null,null,null,null,null,null,null,null,null,null,null,null,null,null,null,null,null,null,null,null,null,null,null," ",null,null,null,null,null,null,null,null,null,null,null,null,null,null,null,null,null,null,null,null,null,null,null,null,null,null,null,null,null,null," "]
[null,null,null,null,null,null,null,null,null,null,null,null,null,null,null,null,null,null,null,null,null,null,null,null,null,null,null,null,null,null,null,null,null,null,null,null,null," ",null,null,null,null,null,null,null,null,null,null,null,null,null,null,null,null,null,null,null,null,null,null,null,null,null,null,null,null,null,null," ",null,null,null,null,null,null,null,null,null,null,null,null,null,null,null,null,null,null,null,null,null,null,null,null,null,null,null,null,null,null," ",null,null,null,null,null,null,null,null,null,null,null,null,null,null,null,null,null,null,null,null,null,null,null,null,null,null,null,null,null,null," ",null,null,null,null,null,null,null,null,null,null,null,null,null,null,null,null,null,null,null,null,null,null,null,null,null,null,null,null,null,null," "]
[null,null,null,null,null,null,null,null,null,null,null,null,null,null,null,null,null,null,null,null,null,null,null,null,null,null,null,null,null,null,null,null,null,null,null,null,null," ",null,null,null,null,null,null,null,null,null,null,null,null,null,null,null,null,null,null,null,null,null,null,null,null,null,null,null,null,null,null," ",null,null,null,null,null,null,null,null,null,null,null,null,null,null,null,null,null,null,null,null,null,null,null,null,null,null,null,null,null,null," ",null,null,null,null,null,null,null,null,null,null,null,null,null,null,null,null,null,null,null,null,null,null,null,null,null,null,null,null,null,null," ",null,null,null,null,null,null,null,null,null,null,null,null,null,null,null,null,null,null,null,null,null,null,null,null,null,null,null,null,null,null," "]
[null,null,null,null,null,null,null,null,null,null,null,null,null,null,null,null,null,null,null,null,null,null,null,null,null,null,null,null,null,null,null,null,null,null,null,null,null," ",null,null,null,null,null,null,null,null,null,null,null,null,null,null,null,null,null,null,null,null,null,null,null,null,null,null,null,null,null,null," ",null,null,null,null,null,null,null,null,null,null,null,null,null,null,null,null,null,null,null,null,null,null,null,null,null,null,null,null,null,null," ",null,null,null,null,null,null,null,null,null,null,null,null,null,null,null,null,null,null,null,null,null,null,null,null,null,null,null,null,null,null," ",null,null,null,null,null,null,null,null,null,null,null,null,null,null,null,null,null,null,null,null,null,null,null,null,null,null,null,null,null,null," "]
[null,null,null,null,null,null,null,null,null,null,null,null,null,null,null,null,null,null,null,null,null,null,null,null,null,null,null,null,null,null,null,null,null,null,null,null,null," ",null,null,null,null,null,null,null,null,null,null,null,null,null,null,null,null,null,null,null,null,null,null,null,null,null,null,null,null,null,null," ",null,null,null,null,null,null,null,null,null,null,null,null,null,null,null,null,null,null,null,null,null,null,null,null,null,null,null,null,null,null," ",null,null,null,null,null,null,null,null,null,null,null,null,null,null,null,null,null,null,null,null,null,null,null,null,null,null,null,null,null,null," ",null,null,null,null,null,null,null,null,null,null,null,null,null,null,null,null,null,null,null,null,null,null,null,null,null,null,null,null,null,null," "]
[null,null,null,null,null,null,null,null,null,{"$f":"IF(WEEKDAY(J$4)=2,_xlfn.ISOWEEKNUM(J$4),\"\")","v":32},"","","","","","",33,"","","","","","",34,"","","","","","",35,"","","","","","",36,"","","","","","",37,"","","","","","",38,"","","","","","",39,"","","","","","",40,"","","","","",{"$f":"IF(WEEKDAY(BT$4)=2,_xlfn.ISOWEEKNUM(BT$4),\"\")","v":""},"",41,"","","","","","",42,"","","","","","",43,"","","","","","",44,"","","","","","",45,"","","","","","",46,"","","","","","",47,"","","","","","",48,"","","","","","","",49,"","","","","","",50,"","","","","","",51,"",{"$f":"IF(WEEKDAY(EQ$4)=2,_xlfn.ISOWEEKNUM(EQ$4),\"\")","v":""},"","","","",52,"","","","","","",1,"","","","","","",2,"","","","","","",3,"","","","","","",4,"","","","","","",5,"","","","",""]
[null,null,null,null,null,null,null,null,null,null,null,null,null,null,null,null,null,null,null,null,null,null,null,null,null,null,null,null,null,null,null,null,null,null,null,null,null," ",null,null,null,null,null,null,null,null,null,null,null,null,null,null,null,null,null,null,null,null,null,null,null,null,null,null,null,null,null,null," ",null,null,null,null,null,null,null,null,null,null,null,null,null,null,null,null,null,null,null,null,null,null,null,null,null,null,null,null,null,null," ",null,null,null,null,null,null,null,null,null,null,null,null,null,null,null,null,null,null,null,null,null,null,null,null,null,null,null,null,null,null," ",null,null,null,null,null,null,null,null,null,null,null,null,null,null,null,null,null,null,null,null,null,null,null,null,null,null,null,null,null,null," "]
[null,null,null,null,null,null,null,null,null,null,null,null,null,null,null,null,null,null,null,null,null,null,null,null,null,null,null,null,null,null,null,null,null,null,null,null,null," ",null,null,null,null,null,null,null,null,null,null,null,null,null,null,null,null,null,null,null,null,null,null,null,null,null,null,null,null,null,null," ",null,null,null,null,null,null,null,null,null,null,null,null,null,null,null,null,null,null,null,null,null,null,null,null,null,null,null,null,null,null," ",null,null,null,null,null,null,null,null,null,null,null,null,null,null,null,null,null,null,null,null,null,null,null,null,null,null,null,null,null,null," ",null,null,null,null,null,null,null,null,null,null,null,null,null,null,null,null,null,null,null,null,null,null,null,null,null,null,null,null,null,null," "]
[null,null,null,null,null,null,null,null,null,null,null,null,null,null,null,null,null,null,null,null,null,null,null,null,null,null,null,null,null,null,null,null,null,null,null,null,null," ",null,null,null,null,null,null,null,null,null,null,null,null,null,null,null,null,null,null,null,null,null,null,null,null,null,null,null,null,null,null," ",null,null,null,null,null,null,null,null,null,null,null,null,null,null,null,null,null,null,null,null,null,null,null,null,null,null,null,null,null,null," ",null,null,null,null,null,null,null,null,null,null,null,null,null,null,null,null,null,null,null,null,null,null,null,null,null,null,null,null,null,null," ",null,null,null,null,null,null,null,null,null,null,null,null,null,null,null,null,null,null,null,null,null,null,null,null,null,null,null,null,null,null," "]
[null,null,null,null,null,null,null,null,null,null,null,null,null,null,null,null,null,null,null,null,null,null,null,null,null,null,null,null,null,null,null,null,null,null,null,null,null," ",null,null,null,null,null,null,null,null,null,null,null,null,null,null,null,null,null,null,null,null,null,null,null,null,null,null,null,null,null,null," ",null,null,null,null,null,null,null,null,null,null,null,null,null,null,null,null,null,null,null,null,null,null,null,null,null,null,null,null,null,null," ",null,null,null,null,null,null,null,null,null,null,null,null,null,null,null,null,null,null,null,null,null,null,null,null,null,null,null,null,null,null," ",null,null,null,null,null,null,null,null,null,null,null,null,null,null,null,null,null,null,null,null,null,null,null,null,null,null,null,null,null,null," "]
[null,null,null,null,null,null,null,null,null,null,null,null,null,null,null,null,null,null,null,null,null,null,null,null,null,null,null,null,null,null,null,null,null,null,null,null,null," ",null,null,null,null,null,null,null,null,null,null,null,null,null,null,null,null,null,null,null,null,null,null,null,null,null,null,null,null,null,null," ",null,null,null,null,null,null,null,null,null,null,null,null,null,null,null,null,null,null,null,null,null,null,null,null,null,null,null,null,null,null," ",null,null,null,null,null,null,null,null,null,null,null,null,null,null,null,null,null,null,null,null,null,null,null,null,null,null,null,null,null,null," ",null,null,null,null,null,null,null,null,null,null,null,null,null,null,null,null,null,null,null,null,null,null,null,null,null,null,null,null,null,null," "]
[null,null,null,null,null,null,null,null,null,null,null,null,null,null,null,null,null,null,null,null,null,null,null,null,null,null,null,null,null,null,null,null,null,null,null,null,null," ",null,null,null,null,null,null,null,null,null,null,null,null,null,null,null,null,null,null,null,null,null,null,null,null,null,null,null,null,null,null," ",null,null,null,null,null,null,null,null,null,null,null,null,null,null,null,null,null,null,null,null,null,null,null,null,null,null,null,null,null,null," ",null,null,null,null,null,null,null,null,null,null,null,null,null,null,null,null,null,null,null,null,null,null,null,null,null,null,null,null,null,null," ",null,null,null,null,null,null,null,null,null,null,null,null,null,null,null,null,null,null,null,null,null,null,null,null,null,null,null,null,null,null," "]
[null,null,null,null,null,null,null,null,null,null,null,null,null,null,null,null,null,null,null,null,null,null,null,null,null,null,null,null,null,null,null,null,null,null,null,null,null," ",null,null,null,null,null,null,null,null,null,null,null,null,null,null,null,null,null,null,null,null,null,null,null,null,null,null,null,null,null,null," ",null,null,null,null,null,null,null,null,null,null,null,null,null,null,null,null,null,null,null,null,null,null,null,null,null,null,null,null,null,null," ",null,null,null,null,null,null,null,null,null,null,null,null,null,null,null,null,null,null,null,null,null,null,null,null,null,null,null,null,null,null," ",null,null,null,null,null,null,null,null,null,null,null,null,null,null,null,null,null,null,null,null,null,null,null,null,null,null,null,null,null,null," "]
[null,null,null,null,null,null,null,null,null,null,null,null,null,null,null,null,null,null,null,null,null,null,null,null,null,null,null,null,null,null,null,null,null,null,null,null,null," ",null,null,null,null,null,null,null,null,null,null,null,null,null,null,null,null,null,null,null,null,null,null,null,null,null,null,null,null,null,null," ",null,null,null,null,null,null,null,null,null,null,null,null,null,null,null,null,null,null,null,null,null,null,null,null,null,null,null,null,null,null," ",null,null,null,null,null,null,null,null,null,null,null,null,null,null,null,null,null,null,null,null,null,null,null,null,null,null,null,null,null,null," ",null,null,null,null,null,null,null,null,null,null,null,null,null,null,null,null,null,null,null,null,null,null,null,null,null,null,null,null,null,null," "]
[null,null,null,null,null,null,null,null,null,null,null,null,null,null,null,null,null,null,null,null,null,null,null,null,null,null,null,null,null,null,null,null,null,null,null,null,null," ",null,null,null,null,null,null,null,null,null,null,null,null,null,null,null,null,null,null,null,null,null,null,null,null,null,null,null,null,null,null," ",null,null,null,null,null,null,null,null,null,null,null,null,null,null,null,null,null,null,null,null,null,null,null,null,null,null,null,null,null,null," ",null,null,null,null,null,null,null,null,null,null,null,null,null,null,null,null,null,null,null,null,null,null,null,null,null,null,null,null,null,null," ",null,null,null,null,null,null,null,null,null,null,null,null,null,null,null,null,null,null,null,null,null,null,null,null,null,null,null,null,null,null," "]
[null,null,null,null,null,null,null,null,null,{"$f":"IF(WEEKDAY(J$4)=2,_xlfn.ISOWEEKNUM(J$4),\"\")","v":32},"","","","","","",33,"","","","","","",34,"","","","","","",35,"","","","","","",36,"","","","","","",37,"","","","","","",38,"","","","","","",39,"","","","","","",40,"","","","","",{"$f":"IF(WEEKDAY(BT$4)=2,_xlfn.ISOWEEKNUM(BT$4),\"\")","v":""},"",41,"","","","","","",42,"","","","","","",43,"","","","","","",44,"","","","","","",45,"","","","","","",46,"","","","","","",47,"","","","","","",48,"","","","","","","",{"$f":"IF(WEEKDAY(EA$4)=2,_xlfn.ISOWEEKNUM(EA$4),\"\")","v":49},"","","","","","",50,"","","","","","",51,"",{"$f":"IF(WEEKDAY(EQ$4)=2,_xlfn.ISOWEEKNUM(EQ$4),\"\")","v":""},"","","","",52,"","","","","","",1,"","","",{"$f":"IF(WEEKDAY(FG$4)=2,_xlfn.ISOWEEKNUM(FG$4),\"\")","v":""},"","",2,"","","","","","",3,"","","","","","",4,"","","","","","",5,"","","","",""]
[null,null,null,null,null,null,null,null,null,null,null,null,null,null,null,null,null,null,null,null,null,null,null,null,null,null,null,null,null,null,null,null,null,null,null,null,null," ",null,null,null,null,null,null,null,null,null,null,null,null,null,null,null,null,null,null,null,null,null,null,null,null,null,null,null,null,null,null," ",null,null,null,null,null,null,null,null,null,null,null,null,null,null,null,null,null,null,null,null,null,null,null,null,null,null,null,null,null,null," ",null,null,null,null,null,null,null,null,null,null,null,null,null,null,null,null,null,null,null,null,null,null,null,null,null,null,null,null,null,null," ",null,null,null,null,null,null,null,null,null,null,null,null,null,null,null,null,null,null,null,null,null,null,null,null,null,null,null,null,null,null," "]
[null,null,null,null,null,null,null,null,null,null,null,null,null,null,null,null,null,null,null,null,null,null,null,null,null,null,null,null,null,null,null,null,null,null,null,null,null," ",null,null,null,null,null,null,null,null,null,null,null,null,null,null,null,null,null,null,null,null,null,null,null,null,null,null,null,null,null,null," ",null,null,null,null,null,null,null,null,null,null,null,null,null,null,null,null,null,null,null,null,null,null,null,null,null,null,null,null,null,null," ",null,null,null,null,null,null,null,null,null,null,null,null,null,null,null,null,null,null,null,null,null,null,null,null,null,null,null,null,null,null," ",null,null,null,null,null,null,null,null,null,null,null,null,null,null,null,null,null,null,null,null,null,null,null,null,null,null,null,null,null,null," "]
[null,null,null,null,null,null,null,null,null,null,null,null,null,null,null,null,null,null,null,null,null,null,null,null,null,null,null,null,null,null,null,null,null,null,null,null,null," ",null,null,null,null,null,null,null,null,null,null,null,null,null,null,null,null,null,null,null,null,null,null,null,null,null,null,null,null,null,null," ",null,null,null,null,null,null,null,null,null,null,null,null,null,null,null,null,null,null,null,null,null,null,null,null,null,null,null,null,null,null," ",null,null,null,null,null,null,null,null,null,null,null,null,null,null,null,null,null,null,null,null,null,null,null,null,null,null,null,null,null,null," ",null,null,null,null,null,null,null,null,null,null,null,null,null,null,null,null,null,null,null,null,null,null,null,null,null,null,null,null,null,null," "]
[null,null,null,null,null,null,null,null,null,null,null,null,null,null,null,null,null,null,null,null,null,null,null,null,null,null,null,null,null,null,null,null,null,null,null,null,null," ",null,null,null,null,null,null,null,null,null,null,null,null,null,null,null,null,null,null,null,null,null,null,null,null,null,null,null,null,null,null," ",null,null,null,null,null,null,null,null,null,null,null,null,null,null,null,null,null,null,null,null,null,null,null,null,null,null,null,null,null,null," ",null,null,null,null,null,null,null,null,null,null,null,null,null,null,null,null,null,null,null,null,null,null,null,null,null,null,null,null,null,null," ",null,null,null,null,null,null,null,null,null,null,null,null,null,null,null,null,null,null,null,null,null,null,null,null,null,null,null,null,null,null," "]
[null,null,null,null,null,null,null,null,null,null,null,null,null,null,null,null,null,null,null,null,null,null,null,null,null,null,null,null,null,null,null,null,null,null,null,null,null," ",null,null,null,null,null,null,null,null,null,null,null,null,null,null,null,null,null,null,null,null,null,null,null,null,null,null,null,null,null,null," ",null,null,null,null,null,null,null,null,null,null,null,null,null,null,null,null,null,null,null,null,null,null,null,null,null,null,null,null,null,null," ",null,null,null,null,null,null,null,null,null,null,null,null,null,null,null,null,null,null,null,null,null,null,null,null,null,null,null,null,null,null," ",null,null,null,null,null,null,null,null,null,null,null,null,null,null,null,null,null,null,null,null,null,null,null,null,null,null,null,null,null,null," "]
[null,null,null,null,null,null,null,null,null,null,null,null,null,null,null,null,null,null,null,null,null,null,null,null,null,null,null,null,null,null,null,null,null,null,null,null,null," ",null,null,null,null,null,null,null,null,null,null,null,null,null,null,null,null,null,null,null,null,null,null,null,null,null,null,null,null,null,null," ",null,null,null,null,null,null,null,null,null,null,null,null,null,null,null,null,null,null,null,null,null,null,null,null,null,null,null,null,null,null," ",null,null,null,null,null,null,null,null,null,null,null,null,null,null,null,null,null,null,null,null,null,null,null,null,null,null,null,null,null,null," ",null,null,null,null,null,null,null,null,null,null,null,null,null,null,null,null,null,null,null,null,null,null,null,null,null,null,null,null,null,null," "]
[null,null,null,null,null,null,null,null,null,null,null,null,null,null,null,null,null,null,null,null,null,null,null,null,null,null,null,null,null,null,null,null,null,null,null,null,null," ",null,null,null,null,null,null,null,null,null,null,null,null,null,null,null,null,null,null,null,null,null,null,null,null,null,null,null,null,null,null," ",null,null,null,null,null,null,null,null,null,null,null,null,null,null,null,null,null,null,null,null,null,null,null,null,null,null,null,null,null,null," ",null,null,null,null,null,null,null,null,null,null,null,null,null,null,null,null,null,null,null,null,null,null,null,null,null,null,null,null,null,null," ",null,null,null,null,null,null,null,null,null,null,null,null,null,null,null,null,null,null,null,null,null,null,null,null,null,null,null,null,null,null," "]
[null,null,null,null,null,null,null,null,null,null,null,null,null,null,null,null,null,null,null,null,null,null,null,null,null,null,null,null,null,null,null,null,null,null,null,null,null," ",null,null,null,null,null,null,null,null,null,null,null,null,null,null,null,null,null,null,null,null,null,null,null,null,null,null,null,null,null,null," ",null,null,null,null,null,null,null,null,null,null,null,null,null,null,null,null,null,null,null,null,null,null,null,null,null,null,null,null,null,null," ",null,null,null,null,null,null,null,null,null,null,null,null,null,null,null,null,null,null,null,null,null,null,null,null,null,null,null,null,null,null," ",null,null,null,null,null,null,null,null,null,null,null,null,null,null,null,null,null,null,null,null,null,null,null,null,null,null,null,null,null,null," "]
[null,null,null,null,null,null,null,null,null,null,null,null,null,null,null,null,null,null,null,null,null,null,null,null,null,null,null,null,null,null,null,null,null,null,null,null,null," ",null,null,null,null,null,null,null,null,null,null,null,null,null,null,null,null,null,null,null,null,null,null,null,null,null,null,null,null,null,null," ",null,null,null,null,null,null,null,null,null,null,null,null,null,null,null,null,null,null,null,null,null,null,null,null,null,null,null,null,null,null," ",null,null,null,null,null,null,null,null,null,null,null,null,null,null,null,null,null,null,null,null,null,null,null,null,null,null,null,null,null,null," ",null,null,null,null,null,null,null,null,null,null,null,null,null,null,null,null,null,null,null,null,null,null,null,null,null,null,null,null,null,null," "]
[null,null,null,null,null,null,null,null,null,{"$f":"IF(WEEKDAY(J$4)=2,_xlfn.ISOWEEKNUM(J$4),\"\")","v":32},"","","","","","",33,"","","","","","",34,"","","","","","",35,"","","","","","",36,"","","","","","",37,"","","","","","",38,"","","","","","",39,"","","","","","",40,"","","","","",{"$f":"IF(WEEKDAY(BT$4)=2,_xlfn.ISOWEEKNUM(BT$4),\"\")","v":""},"",41,"","","","","","",42,"","","","","","",43,"","","","","","",44,"","","","","","",45,"","","","","","",46,"","","","","","",47,"","","","","","",48,"","","","","","","",49,"","","","","","",50,"","","","","","",51,"",{"$f":"IF(WEEKDAY(EQ$4)=2,_xlfn.ISOWEEKNUM(EQ$4),\"\")","v":""},"","","","",52,"","","","","","",1,"","","",{"$f":"IF(WEEKDAY(FG$4)=2,_xlfn.ISOWEEKNUM(FG$4),\"\")","v":""},"","",2,"","","","","","",3,"","","","","","",4,"","","","","","",5,"","","","",""]
[null,null,null,null,null,null,null,null,null,null,null,null,null,null,null,null,null,null,null,null,null,null,null,null,null,null,null,null,null,null,null,null,null,null,null,null,null," ",null,null,null,null,null,null,null,null,null,null,null,null,null,null,null,null,null,null,null,null,null,null,null,null,null,null,null,null,null,null," ",null,null,null,null,null,null,null,null,null,null,null,null,null,null,null,null,null,null,null,null,null,null,null,null,null,null,null,null,null,null," ",null,null,null,null,null,null,null,null,null,null,null,null,null,null,null,null,null,null,null,null,null,null,null,null,null,null,null,null,null,null," ",null,null,null,null,null,null,null,null,null,null,null,null,null,null,null,null,null,null,null,null,null,null,null,null,null,null,null,null,null,null," "]
[null,null,null,null,null,null,null,null,null,null,null,null,null,null,null,null,null,null,null,null,null,null,null,null,null,null,null,null,null,null,null,null,null,null,null,null,null," ",null,null,null,null,null,null,null,null,null,null,null,null,null,null,null,null,null,null,null,null,null,null,null,null,null,null,null,null,null,null," ",null,null,null,null,null,null,null,null,null,null,null,null,null,null,null,null,null,null,null,null,null,null,null,null,null,null,null,null,null,null," ",null,null,null,null,null,null,null,null,null,null,null,null,null,null,null,null,null,null,null,null,null,null,null,null,null,null,null,null,null,null," ",null,null,null,null,null,null,null,null,null,null,null,null,null,null,null,null,null,null,null,null,null,null,null,null,null,null,null,null,null,null," "]
[null,null,null,null,null,null,null,null,null,null,null,null,null,null,null,null,null,null,null,null,null,null,null,null,null,null,null,null,null,null,null,null,null,null,null,null,null," ",null,null,null,null,null,null,null,null,null,null,null,null,null,null,null,null,null,null,null,null,null,null,null,null,null,null,null,null,null,null," ",null,null,null,null,null,null,null,null,null,null,null,null,null,null,null,null,null,null,null,null,null,null,null,null,null,null,null,null,null,null," ",null,null,null,null,null,null,null,null,null,null,null,null,null,null,null,null,null,null,null,null,null,null,null,null,null,null,null,null,null,null," ",null,null,null,null,null,null,null,null,null,null,null,null,null,null,null,null,null,null,null,null,null,null,null,null,null,null,null,null,null,null," "]
[null,null,null,null,null,null,null,null,null,null,null,null,null,null,null,null,null,null,null,null,null,null,null,null,null,null,null,null,null,null,null,null,null,null,null,null,null," ",null,null,null,null,null,null,null,null,null,null,null,null,null,null,null,null,null,null,null,null,null,null,null,null,null,null,null,null,null,null," ",null,null,null,null,null,null,null,null,null,null,null,null,null,null,null,null,null,null,null,null,null,null,null,null,null,null,null,null,null,null," ",null,null,null,null,null,null,null,null,null,null,null,null,null,null,null,null,null,null,null,null,null,null,null,null,null,null,null,null,null,null," ",null,null,null,null,null,null,null,null,null,null,null,null,null,null,null,null,null,null,null,null,null,null,null,null,null,null,null,null,null,null," "]
[null,null,null,null,null,null,null,null,null,null,null,null,null,null,null,null,null,null,null,null,null,null,null,null,null,null,null,null,null,null,null,null,null,null,null,null,null," ",null,null,null,null,null,null,null,null,null,null,null,null,null,null,null,null,null,null,null,null,null,null,null,null,null,null,null,null,null,null," ",null,null,null,null,null,null,null,null,null,null,null,null,null,null,null,null,null,null,null,null,null,null,null,null,null,null,null,null,null,null," ",null,null,null,null,null,null,null,null,null,null,null,null,null,null,null,null,null,null,null,null,null,null,null,null,null,null,null,null,null,null," ",null,null,null,null,null,null,null,null,null,null,null,null,null,null,null,null,null,null,null,null,null,null,null,null,null,null,null,null,null,null," "]
[null,null,null,null,null,null,null,null,null,null,null,null,null,null,null,null,null,null,null,null,null,null,null,null,null,null,null,null,null,null,null,null,null,null,null,null,null," ",null,null,null,null,null,null,null,null,null,null,null,null,null,null,null,null,null,null,null,null,null,null,null,null,null,null,null,null,null,null," ",null,null,null,null,null,null,null,null,null,null,null,null,null,null,null,null,null,null,null,null,null,null,null,null,null,null,null,null,null,null," ",null,null,null,null,null,null,null,null,null,null,null,null,null,null,null,null,null,null,null,null,null,null,null,null,null,null,null,null,null,null," ",null,null,null,null,null,null,null,null,null,null,null,null,null,null,null,null,null,null,null,null,null,null,null,null,null,null,null,null,null,null," "]
[null,null,null,null,null,null,null,null,null,null,null,null,null,null,null,null,null,null,null,null,null,null,null,null,null,null,null,null,null,null,null,null,null,null,null,null,null," ",null,null,null,null,null,null,null,null,null,null,null,null,null,null,null,null,null,null,null,null,null,null,null,null,null,null,null,null,null,null," ",null,null,null,null,null,null,null,null,null,null,null,null,null,null,null,null,null,null,null,null,null,null,null,null,null,null,null,null,null,null," ",null,null,null,null,null,null,null,null,null,null,null,null,null,null,null,null,null,null,null,null,null,null,null,null,null,null,null,null,null,null," ",null,null,null,null,null,null,null,null,null,null,null,null,null,null,null,null,null,null,null,null,null,null,null,null,null,null,null,null,null,null," "]
[null,null,null,null,null,null,null,null,null,null,null,null,null,null,null,null,null,null,null,null,null,null,null,null,null,null,null,null,null,null,null,null,null,null,null,null,null," ",null,null,null,null,null,null,null,null,null,null,null,null,null,null,null,null,null,null,null,null,null,null,null,null,null,null,null,null,null,null," ",null,null,null,null,null,null,null,null,null,null,null,null,null,null,null,null,null,null,null,null,null,null,null,null,null,null,null,null,null,null," ",null,null,null,null,null,null,null,null,null,null,null,null,null,null,null,null,null,null,null,null,null,null,null,null,null,null,null,null,null,null," ",null,null,null,null,null,null,null,null,null,null,null,null,null,null,null,null,null,null,null,null,null,null,null,null,null,null,null,null,null,null," "]
[null,null,null,null,null,null,null,null,null,null,null,null,null,null,null,null,null,null,null,null,null,null,null,null,null,null,null,null,null,null,null,null,null,null,null,null,null," ",null,null,null,null,null,null,null,null,null,null,null,null,null,null,null,null,null,null,null,null,null,null,null,null,null,null,null,null,null,null," ",null,null,null,null,null,null,null,null,null,null,null,null,null,null,null,null,null,null,null,null,null,null,null,null,null,null,null,null,null,null," ",null,null,null,null,null,null,null,null,null,null,null,null,null,null,null,null,null,null,null,null,null,null,null,null,null,null,null,null,null,null," ",null,null,null,null,null,null,null,null,null,null,null,null,null,null,null,null,null,null,null,null,null,null,null,null,null,null,null,null,null,null," "]
[null,null,null,null,null,null,null,null,null,{"$f":"IF(WEEKDAY(J$4)=2,_xlfn.ISOWEEKNUM(J$4),\"\")","v":32},"","","","","","",33,"","","","","","",34,"","","","","","",35,"","","","","","",36,"","","","","","",37,"","","","","","",38,"","","","","","",39,"","","","","","",40,"","","","","",{"$f":"IF(WEEKDAY(BT$4)=2,_xlfn.ISOWEEKNUM(BT$4),\"\")","v":""},"",41,"","","","","","",42,"","","","","","",43,"","","","","","",44,"","","","","","",45,"","","","","","",46,"","","","","","",47,"","","","","","",48,"","","","","","","",49,"","","","","","",50,"","","","","","",51,"",{"$f":"IF(WEEKDAY(EQ$4)=2,_xlfn.ISOWEEKNUM(EQ$4),\"\")","v":""},"","","","",52,"","","","","","",1,"","","",{"$f":"IF(WEEKDAY(FG$4)=2,_xlfn.ISOWEEKNUM(FG$4),\"\")","v":""},"","",2,"","","","","","",3,"","","","","","",4,"","","","","","",5,"","","","",""]
[null,null,null,null,null,null,null,null,null,null,null,null,null,null,null,null,null,null,null,null,null,null,null,null,null,null,null,null,null,null,null,null,null,null,null,null,null," ",null,null,null,null,null,null,null,null,null,null,null,null,null,null,null,null,null,null,null,null,null,null,null,null,null,null,null,null,null,null," ",null,null,null,null,null,null,null,null,null,null,null,null,null,null,null,null,null,null,null,null,null,null,null,null,null,null,null,null,null,null," ",null,null,null,null,null,null,null,null,null,null,null,null,null,null,null,null,null,null,null,null,null,null,null,null,null,null,null,null,null,null," ",null,null,null,null,null,null,null,null,null,null,null,null,null,null,null,null,null,null,null,null,null,null,null,null,null,null,null,null,null,null," "]
[null,null,null,null,null,null,null,null,null,null,null,null,null,null,null,null,null,null,null,null,null,null,null,null,null,null,null,null,null,null,null,null,null,null,null,null,null," ",null,null,null,null,null,null,null,null,null,null,null,null,null,null,null,null,null,null,null,null,null,null,null,null,null,null,null,null,null,null," ",null,null,null,null,null,null,null,null,null,null,null,null,null,null,null,null,null,null,null,null,null,null,null,null,null,null,null,null,null,null," ",null,null,null,null,null,null,null,null,null,null,null,null,null,null,null,null,null,null,null,null,null,null,null,null,null,null,null,null,null,null," ",null,null,null,null,null,null,null,null,null,null,null,null,null,null,null,null,null,null,null,null,null,null,null,null,null,null,null,null,null,null," "]
[null,null,null,null,null,null,null,null,null,null,null,null,null,null,null,null,null,null,null,null,null,null,null,null,null,null,null,null,null,null,null,null,null,null,null,null,null," ",null,null,null,null,null,null,null,null,null,null,null,null,null,null,null,null,null,null,null,null,null,null,null,null,null,null,null,null,null,null," ",null,null,null,null,null,null,null,null,null,null,null,null,null,null,null,null,null,null,null,null,null,null,null,null,null,null,null,null,null,null," ",null,null,null,null,null,null,null,null,null,null,null,null,null,null,null,null,null,null,null,null,null,null,null,null,null,null,null,null,null,null," ",null,null,null,null,null,null,null,null,null,null,null,null,null,null,null,null,null,null,null,null,null,null,null,null,null,null,null,null,null,null," "]
[null,null,null,null,null,null,null,null,null,null,null,null,null,null,null,null,null,null,null,null,null,null,null,null,null,null,null,null,null,null,null,null,null,null,null,null,null," ",null,null,null,null,null,null,null,null,null,null,null,null,null,null,null,null,null,null,null,null,null,null,null,null,null,null,null,null,null,null," ",null,null,null,null,null,null,null,null,null,null,null,null,null,null,null,null,null,null,null,null,null,null,null,null,null,null,null,null,null,null," ",null,null,null,null,null,null,null,null,null,null,null,null,null,null,null,null,null,null,null,null,null,null,null,null,null,null,null,null,null,null," ",null,null,null,null,null,null,null,null,null,null,null,null,null,null,null,null,null,null,null,null,null,null,null,null,null,null,null,null,null,null," "]
[null,null,null,null,null,null,null,null,null,null,null,null,null,null,null,null,null,null,null,null,null,null,null,null,null,null,null,null,null,null,null,null,null,null,null,null,null," ",null,null,null,null,null,null,null,null,null,null,null,null,null,null,null,null,null,null,null,null,null,null,null,null,null,null,null,null,null,null," ",null,null,null,null,null,null,null,null,null,null,null,null,null,null,null,null,null,null,null,null,null,null,null,null,null,null,null,null,null,null," ",null,null,null,null,null,null,null,null,null,null,null,null,null,null,null,null,null,null,null,null,null,null,null,null,null,null,null,null,null,null," ",null,null,null,null,null,null,null,null,null,null,null,null,null,null,null,null,null,null,null,null,null,null,null,null,null,null,null,null,null,null," "]
[null,null,null,null,null,null,null,null,null,null,null,null,null,null,null,null,null,null,null,null,null,null,null,null,null,null,null,null,null,null,null,null,null,null,null,null,null," ",null,null,null,null,null,null,null,null,null,null,null,null,null,null,null,null,null,null,null,null,null,null,null,null,null,null,null,null,null,null," ",null,null,null,null,null,null,null,null,null,null,null,null,null,null,null,null,null,null,null,null,null,null,null,null,null,null,null,null,null,null," ",null,null,null,null,null,null,null,null,null,null,null,null,null,null,null,null,null,null,null,null,null,null,null,null,null,null,null,null,null,null," ",null,null,null,null,null,null,null,null,null,null,null,null,null,null,null,null,null,null,null,null,null,null,null,null,null,null,null,null,null,null," "]
[null,null,null,null,null,null,null,null,null,null,null,null,null,null,null,null,null,null,null,null,null,null,null,null,null,null,null,null,null,null,null,null,null,null,null,null,null," ",null,null,null,null,null,null,null,null,null,null,null,null,null,null,null,null,null,null,null,null,null,null,null,null,null,null,null,null,null,null," ",null,null,null,null,null,null,null,null,null,null,null,null,null,null,null,null,null,null,null,null,null,null,null,null,null,null,null,null,null,null," ",null,null,null,null,null,null,null,null,null,null,null,null,null,null,null,null,null,null,null,null,null,null,null,null,null,null,null,null,null,null," ",null,null,null,null,null,null,null,null,null,null,null,null,null,null,null,null,null,null,null,null,null,null,null,null,null,null,null,null,null,null," "]
[null,null,null,null,null,null,null,null,null,null,null,null,null,null,null,null,null,null,null,null,null,null,null,null,null,null,null,null,null,null,null,null,null,null,null,null,null," ",null,null,null,null,null,null,null,null,null,null,null,null,null,null,null,null,null,null,null,null,null,null,null,null,null,null,null,null,null,null," ",null,null,null,null,null,null,null,null,null,null,null,null,null,null,null,null,null,null,null,null,null,null,null,null,null,null,null,null,null,null," ",null,null,null,null,null,null,null,null,null,null,null,null,null,null,null,null,null,null,null,null,null,null,null,null,null,null,null,null,null,null," ",null,null,null,null,null,null,null,null,null,null,null,null,null,null,null,null,null,null,null,null,null,null,null,null,null,null,null,null,null,null," "]
[null,null,null,null,null,null,null,null,null,null,null,null,null,null,null,null,null,null,null,null,null,null,null,null,null,null,null,null,null,null,null,null,null,null,null,null,null," ",null,null,null,null,null,null,null,null,null,null,null,null,null,null,null,null,null,null,null,null,null,null,null,null,null,null,null,null,null,null," ",null,null,null,null,null,null,null,null,null,null,null,null,null,null,null,null,null,null,null,null,null,null,null,null,null,null,null,null,null,null," ",null,null,null,null,null,null,null,null,null,null,null,null,null,null,null,null,null,null,null,null,null,null,null,null,null,null,null,null,null,null," ",null,null,null,null,null,null,null,null,null,null,null,null,null,null,null,null,null,null,null,null,null,null,null,null,null,null,null,null,null,null," "]
[null,null,null,null,null,null,null,null,null,{"$f":"IF(WEEKDAY(J$4)=2,_xlfn.ISOWEEKNUM(J$4),\"\")","v":32},"","","","","","",33,"","","","","","",34,"","","","","","",35,"","","","","","",36,"","","","","","",37,"","","","","","",38,"","","","","","",39,"","","","","","",40,"","","","","",{"$f":"IF(WEEKDAY(BT$4)=2,_xlfn.ISOWEEKNUM(BT$4),\"\")","v":""},"",41,"","","","","","",42,"","","","","","",43,"","","","","","",44,"","","","","","",45,"","","","","","",46,"","","","","","",47,"","","","","","",48,"","","","","","","",49,"","","","","","",50,"","","","","","",51,"",{"$f":"IF(WEEKDAY(EQ$4)=2,_xlfn.ISOWEEKNUM(EQ$4),\"\")","v":""},"","","","",52,"","","","","","",1,"","","",{"$f":"IF(WEEKDAY(FG$4)=2,_xlfn.ISOWEEKNUM(FG$4),\"\")","v":""},"","",2,"","","","","","",3,"","","","","","",4,"","","","","","",5,"","","","",""]
[null,null,null,null,null,null,null,null,null,null,null,null,null,null,null,null,null,null,null,null,null,null,null,null,null,null,null,null,null,null,null,null,null,null,null,null,null," ",null,null,null,null,null,null,null,null,null,null,null,null,null,null,null,null,null,null,null,null,null,null,null,null,null,null,null,null,null,null," ",null,null,null,null,null,null,null,null,null,null,null,null,null,null,null,null,null,null,null,null,null,null,null,null,null,null,null,null,null,null," ",null,null,null,null,null,null,null,null,null,null,null,null,null,null,null,null,null,null,null,null,null,null,null,null,null,null,null,null,null,null," ",null,null,null,null,null,null,null,null,null,null,null,null,null,null,null,null,null,null,null,null,null,null,null,null,null,null,null,null,null,null," "]
[null,null,null,null,null,null,null,null,null,null,null,null,null,null,null,null,null,null,null,null,null,null,null,null,null,null,null,null,null,null,null,null,null,null,null,null,null," ",null,null,null,null,null,null,null,null,null,null,null,null,null,null,null,null,null,null,null,null,null,null,null,null,null,null,null,null,null,null," ",null,null,null,null,null,null,null,null,null,null,null,null,null,null,null,null,null,null,null,null,null,null,null,null,null,null,null,null,null,null," ",null,null,null,null,null,null,null,null,null,null,null,null,null,null,null,null,null,null,null,null,null,null,null,null,null,null,null,null,null,null," ",null,null,null,null,null,null,null,null,null,null,null,null,null,null,null,null,null,null,null,null,null,null,null,null,null,null,null,null,null,null," "]
[null,null,null,null,null,null,null,null,null,null,null,null,null,null,null,null,null,null,null,null,null,null,null,null,null,null,null,null,null,null,null,null,null,null,null,null,null," ",null,null,null,null,null,null,null,null,null,null,null,null,null,null,null,null,null,null,null,null,null,null,null,null,null,null,null,null,null,null," ",null,null,null,null,null,null,null,null,null,null,null,null,null,null,null,null,null,null,null,null,null,null,null,null,null,null,null,null,null,null," ",null,null,null,null,null,null,null,null,null,null,null,null,null,null,null,null,null,null,null,null,null,null,null,null,null,null,null,null,null,null," ",null,null,null,null,null,null,null,null,null,null,null,null,null,null,null,null,null,null,null,null,null,null,null,null,null,null,null,null,null,null," "]
[null,null,null,null,null,null,null,null,null,null,null,null,null,null,null,null,null,null,null,null,null,null,null,null,null,null,null,null,null,null,null,null,null,null,null,null,null," ",null,null,null,null,null,null,null,null,null,null,null,null,null,null,null,null,null,null,null,null,null,null,null,null,null,null,null,null,null,null," ",null,null,null,null,null,null,null,null,null,null,null,null,null,null,null,null,null,null,null,null,null,null,null,null,null,null,null,null,null,null," ",null,null,null,null,null,null,null,null,null,null,null,null,null,null,null,null,null,null,null,null,null,null,null,null,null,null,null,null,null,null," ",null,null,null,null,null,null,null,null,null,null,null,null,null,null,null,null,null,null,null,null,null,null,null,null,null,null,null,null,null,null," "]
[null,null,null,null,null,null,null,null,null,null,null,null,null,null,null,null,null,null,null,null,null,null,null,null,null,null,null,null,null,null,null,null,null,null,null,null,null," ",null,null,null,null,null,null,null,null,null,null,null,null,null,null,null,null,null,null,null,null,null,null,null,null,null,null,null,null,null,null," ",null,null,null,null,null,null,null,null,null,null,null,null,null,null,null,null,null,null,null,null,null,null,null,null,null,null,null,null,null,null," ",null,null,null,null,null,null,null,null,null,null,null,null,null,null,null,null,null,null,null,null,null,null,null,null,null,null,null,null,null,null," ",null,null,null,null,null,null,null,null,null,null,null,null,null,null,null,null,null,null,null,null,null,null,null,null,null,null,null,null,null,null," "]
[null,null,null,null,null,null,null,null,null,null,null,null,null,null,null,null,null,null,null,null,null,null,null,null,null,null,null,null,null,null,null,null,null,null,null,null,null," ",null,null,null,null,null,null,null,null,null,null,null,null,null,null,null,null,null,null,null,null,null,null,null,null,null,null,null,null,null,null," ",null,null,null,null,null,null,null,null,null,null,null,null,null,null,null,null,null,null,null,null,null,null,null,null,null,null,null,null,null,null," ",null,null,null,null,null,null,null,null,null,null,null,null,null,null,null,null,null,null,null,null,null,null,null,null,null,null,null,null,null,null," ",null,null,null,null,null,null,null,null,null,null,null,null,null,null,null,null,null,null,null,null,null,null,null,null,null,null,null,null,null,null," "]
[null,null,null,null,null,null,null,null,null,null,null,null,null,null,null,null,null,null,null,null,null,null,null,null,null,null,null,null,null,null,null,null,null,null,null,null,null," ",null,null,null,null,null,null,null,null,null,null,null,null,null,null,null,null,null,null,null,null,null,null,null,null,null,null,null,null,null,null," ",null,null,null,null,null,null,null,null,null,null,null,null,null,null,null,null,null,null,null,null,null,null,null,null,null,null,null,null,null,null," ",null,null,null,null,null,null,null,null,null,null,null,null,null,null,null,null,null,null,null,null,null,null,null,null,null,null,null,null,null,null," ",null,null,null,null,null,null,null,null,null,null,null,null,null,null,null,null,null,null,null,null,null,null,null,null,null,null,null,null,null,null," "]
[null,null,null,null,null,null,null,null,null,null,null,null,null,null,null,null,null,null,null,null,null,null,null,null,null,null,null,null,null,null,null,null,null,null,null,null,null," ",null,null,null,null,null,null,null,null,null,null,null,null,null,null,null,null,null,null,null,null,null,null,null,null,null,null,null,null,null,null," ",null,null,null,null,null,null,null,null,null,null,null,null,null,null,null,null,null,null,null,null,null,null,null,null,null,null,null,null,null,null," ",null,null,null,null,null,null,null,null,null,null,null,null,null,null,null,null,null,null,null,null,null,null,null,null,null,null,null,null,null,null," ",null,null,null,null,null,null,null,null,null,null,null,null,null,null,null,null,null,null,null,null,null,null,null,null,null,null,null,null,null,null," "]
[null,null,null,null,null,null,null,null,null,null,null,null,null,null,null,null,null,null,null,null,null,null,null,null,null,null,null,null,null,null,null,null,null,null,null,null,null," ",null,null,null,null,null,null,null,null,null,null,null,null,null,null,null,null,null,null,null,null,null,null,null,null,null,null,null,null,null,null," ",null,null,null,null,null,null,null,null,null,null,null,null,null,null,null,null,null,null,null,null,null,null,null,null,null,null,null,null,null,null," ",null,null,null,null,null,null,null,null,null,null,null,null,null,null,null,null,null,null,null,null,null,null,null,null,null,null,null,null,null,null," ",null,null,null,null,null,null,null,null,null,null,null,null,null,null,null,null,null,null,null,null,null,null,null,null,null,null,null,null,null,null," "]
[null,null,null,null,null,null,null,null,null,{"$f":"IF(WEEKDAY(J$4)=2,_xlfn.ISOWEEKNUM(J$4),\"\")","v":32},"","","","","","",33,"","","","","","",34,"","","","","","",35,"","","","","","",36,"","","","","","",37,"","","","","","",38,"","","","","","",39,"","","","","","",40,"","","","","",{"$f":"IF(WEEKDAY(BT$4)=2,_xlfn.ISOWEEKNUM(BT$4),\"\")","v":""},"",41,"","","","","","",42,"","","","","","",43,"","","","","","",44,"","","","","","",45,"","","","","","",46,"","","","","","",47,"","","","","","",48,"","","","","","","",49,"","","","","","",50,"","","","","","",51,"",{"$f":"IF(WEEKDAY(EQ$4)=2,_xlfn.ISOWEEKNUM(EQ$4),\"\")","v":""},"","","","",52,"","","","","","",1,"","","","","","",2,"","","","","","",3,"","","","","","",4,"","","","","","",5,"","","","",""]

{"sheet":"Feuil1","index":3,"n_rows":0,"n_cols":0,"rows_kept":0,"cut":false,"hidden":false,"merged":[]}

{"sheet":"Année","index":4,"n_rows":19,"n_cols":60,"rows_kept":19,"cut":false,"hidden":false,"merged":[]}
[]
[null,null,null,null,null,null,"2025-01-01",null,null,"2025-01-01"]
[null,null,null,null,null,null,{"$f":"_xlfn.ISOWEEKNUM(G4)","v":1},{"$f":"_xlfn.ISOWEEKNUM(H4)","v":2},3,4,5,6,7,8,{"$f":"_xlfn.ISOWEEKNUM(O4)","v":9},{"$f":"_xlfn.ISOWEEKNUM(P4)","v":10},{"$f":"_xlfn.ISOWEEKNUM(Q4)","v":11},{"$f":"_xlfn.ISOWEEKNUM(R4)","v":12},{"$f":"_xlfn.ISOWEEKNUM(S4)","v":13},{"$f":"_xlfn.ISOWEEKNUM(T4)","v":14},{"$f":"_xlfn.ISOWEEKNUM(U4)","v":15},{"$f":"_xlfn.ISOWEEKNUM(V4)","v":16},{"$f":"_xlfn.ISOWEEKNUM(W4)","v":17},{"$f":"_xlfn.ISOWEEKNUM(X4)","v":18},{"$f":"_xlfn.ISOWEEKNUM(Y4)","v":19},{"$f":"_xlfn.ISOWEEKNUM(Z4)","v":20},{"$f":"_xlfn.ISOWEEKNUM(AA4)","v":21},{"$f":"_xlfn.ISOWEEKNUM(AB4)","v":22},{"$f":"_xlfn.ISOWEEKNUM(AC4)","v":23},{"$f":"_xlfn.ISOWEEKNUM(AD4)","v":24},{"$f":"_xlfn.ISOWEEKNUM(AE4)","v":25},{"$f":"_xlfn.ISOWEEKNUM(AF4)","v":26},{"$f":"_xlfn.ISOWEEKNUM(AG4)","v":27},{"$f":"_xlfn.ISOWEEKNUM(AH4)","v":28},{"$f":"_xlfn.ISOWEEKNUM(AI4)","v":29},{"$f":"_xlfn.ISOWEEKNUM(AJ4)","v":30},{"$f":"_xlfn.ISOWEEKNUM(AK4)","v":31},{"$f":"_xlfn.ISOWEEKNUM(AL4)","v":32},{"$f":"_xlfn.ISOWEEKNUM(AM4)","v":33},{"$f":"_xlfn.ISOWEEKNUM(AN4)","v":34},{"$f":"_xlfn.ISOWEEKNUM(AO4)","v":35},{"$f":"_xlfn.ISOWEEKNUM(AP4)","v":36},{"$f":"_xlfn.ISOWEEKNUM(AQ4)","v":37},{"$f":"_xlfn.ISOWEEKNUM(AR4)","v":38},{"$f":"_xlfn.ISOWEEKNUM(AS4)","v":39},{"$f":"_xlfn.ISOWEEKNUM(AT4)","v":40},{"$f":"_xlfn.ISOWEEKNUM(AU4)","v":41},{"$f":"_xlfn.ISOWEEKNUM(AV4)","v":42},{"$f":"_xlfn.ISOWEEKNUM(AW4)","v":43},{"$f":"_xlfn.ISOWEEKNUM(AX4)","v":44},{"$f":"_xlfn.ISOWEEKNUM(AY4)","v":45},{"$f":"_xlfn.ISOWEEKNUM(AZ4)","v":46},{"$f":"_xlfn.ISOWEEKNUM(BA4)","v":47},{"$f":"_xlfn.ISOWEEKNUM(BB4)","v":48},{"$f":"_xlfn.ISOWEEKNUM(BC4)","v":49},{"$f":"_xlfn.ISOWEEKNUM(BD4)","v":50},{"$f":"_xlfn.ISOWEEKNUM(BE4)","v":51},{"$f":"_xlfn.ISOWEEKNUM(BF4)","v":52},{"$f":"_xlfn.ISOWEEKNUM(BG4)","v":1},{"$f":"_xlfn.ISOWEEKNUM(BH4)","v":2}]
[null,null,null,"Fonction","CACES","SST",{"$f":"G2-WEEKDAY(G2,3)","v":"2024-12-30"},{"$f":"G4+7","v":"2025-01-06"},{"$f":"H4+7","v":"2025-01-13"},"2025-01-20","2025-01-27","2025-02-03","2025-02-10","2025-02-17","2025-02-24","2025-03-03","2025-03-10","2025-03-17","2025-03-24","2025-03-31","2025-04-07","2025-04-14","2025-04-21","2025-04-28","2025-05-05","2025-05-12","2025-05-19","2025-05-26","2025-06-02","2025-06-09",{"$f":"AD4+7","v":"2025-06-16"},"2025-06-23","2025-06-30","2025-07-07","2025-07-14","2025-07-21","2025-07-28","2025-08-04","2025-08-11","2025-08-18","2025-08-25","2025-09-01","2025-09-08","2025-09-15","2025-09-22","2025-09-29","2025-10-06","2025-10-13","2025-10-20","2025-10-27","2025-11-03","2025-11-10","2025-11-17","2025-11-24","2025-12-01","2025-12-08","2025-12-15","2025-12-22","2025-12-29","2026-01-05"]
[1]
[2]
[3]
[1]
[2]
[3]
[4]
[5]
[6]
[7]
[8]
[9]
[10]
[11]
[12]

{"sheet":"Bilan","index":5,"n_rows":1,"n_cols":1,"rows_kept":1,"cut":false,"hidden":false,"merged":[]}
[{"$f":"\"Bilan du \" & TEXT(NOW(),\"jjjj jj mmmm aaaa\")","v":"Bilan du vendredi 07 février 2025"}]

{"sheet":"Test_Fermeture","index":6,"n_rows":152,"n_cols":5,"rows_kept":152,"cut":false,"hidden":false,"merged":[]}
[]
["2025-01-01","2025-02-15","Hors Vacances","Vacances d'hiver","Vacances d'hiver"]
[null,"2025-02-19","Hors Vacances","Vacances d'hiver","Vacances d'hiver"]
[null,"2025-02-22","Vacances d'hiver","Vacances d'hiver","Vacances d'hiver"]
[null,"2025-02-28","Vacances d'hiver","Hors Vacances","Vacances d'hiver"]
[null,"2025-05-04","Vacances de printemps","Hors Vacances","Hors Vacances"]
[null,"2025-07-08","Vacances d'été","Vacances d'été","Vacances d'été"]
[null,"2025-10-24","Vacances de la Toussaint","Vacances de la Toussaint","Vacances de la Toussaint"]
[null,"2025-01-03","Vacances de Noël","Vacances de Noël","Vacances de Noël"]
[null,"2025-03-06","Vacances d'hiver","Hors Vacances","Hors Vacances"]
[null,"2025-10-25","Vacances de la Toussaint","Vacances de la Toussaint","Vacances de la Toussaint"]
[null,"2025-04-06","Hors Vacances","Vacances de printemps","Hors Vacances"]
[null,"2025-04-24","Vacances de printemps","Hors Vacances","Vacances de printemps"]
[null,"2025-04-25","Vacances de printemps","Hors Vacances","Vacances de printemps"]
[null,"2025-07-30","Vacances d'été","Vacances d'été","Vacances d'été"]
[null,"2025-08-12","Vacances d'été","Vacances d'été","Vacances d'été"]
[null,"2025-08-21","Vacances d'été","Vacances d'été","Vacances d'été"]
[null,"2025-12-25","Vacances de Noël","Vacances de Noël","Vacances de Noël"]
[null,"2025-12-26","Vacances de Noël","Vacances de Noël","Vacances de Noël"]
[null,"2025-02-17","Hors Vacances","Vacances d'hiver","Vacances d'hiver"]
[null,"2025-07-12","Vacances d'été","Vacances d'été","Vacances d'été"]
[null,"2025-08-02","Vacances d'été","Vacances d'été","Vacances d'été"]
[null,"2025-02-14","Hors Vacances","Vacances d'hiver","Hors Vacances"]
[null,"2025-02-26","Vacances d'hiver","Hors Vacances","Vacances d'hiver"]
[null,"2025-03-07","Vacances d'hiver","Hors Vacances","Hors Vacances"]
[null,"2025-04-13","Hors Vacances","Vacances de printemps","Vacances de printemps"]
[null,"2025-04-23","Vacances de printemps","Hors Vacances","Vacances de printemps"]
[null,"2025-05-03","Vacances de printemps","Hors Vacances","Hors Vacances"]
[null,"2025-01-01","Vacances de Noël","Vacances de Noël","Vacances de Noël"]
[null,"2025-02-16","Hors Vacances","Vacances d'hiver","Vacances d'hiver"]
[null,"2025-04-15","Hors Vacances","Vacances de printemps","Vacances de printemps"]
[null,"2025-07-29","Vacances d'été","Vacances d'été","Vacances d'été"]
[null,"2025-08-01","Vacances d'été","Vacances d'été","Vacances d'été"]
[null,"2025-02-24","Vacances d'hiver","Hors Vacances","Vacances d'hiver"]
[null,"2025-08-11","Vacances d'été","Vacances d'été","Vacances d'été"]
[null,"2025-09-23","Vacances de la Toussaint","Vacances d'été","Vacances d'été"]
[null,"2025-12-20","Vacances de Noël","Vacances de Noël","Vacances de Noël"]
[null,"2025-12-27","Vacances de Noël","Vacances de Noël","Vacances de Noël"]
[null,"2025-02-18","Hors Vacances","Vacances d'hiver","Vacances d'hiver"]
[null,"2025-02-25","Vacances d'hiver","Hors Vacances","Vacances d'hiver"]
[null,"2025-07-14","Vacances d'été","Vacances d'été","Vacances d'été"]
[null,"2025-07-19","Vacances d'été","Vacances d'été","Vacances d'été"]
[null,"2025-10-27","Vacances de la Toussaint","Vacances de la Toussaint","Vacances de la Toussaint"]
[null,"2025-10-31","Vacances de la Toussaint","Vacances de la Toussaint","Vacances de la Toussaint"]
[null,"2025-04-18","Hors Vacances","Vacances de printemps","Vacances de printemps"]
[null,"2025-04-22","Vacances de printemps","Hors Vacances","Vacances de printemps"]
[null,"2025-07-09","Vacances d'été","Vacances d'été","Vacances d'été"]
[null,"2025-07-15","Vacances d'été","Vacances d'été","Vacances d'été"]
[null,"2025-07-31","Vacances d'été","Vacances d'été","Vacances d'été"]
[null,"2025-08-22","Vacances d'été","Vacances d'été","Vacances d'été"]
[null,"2025-10-18","Vacances de la Toussaint","Vacances de la Toussaint","Vacances de la Toussaint"]
[null,"2025-10-20","Vacances de la Toussaint","Vacances de la Toussaint","Vacances de la Toussaint"]
[null,"2025-04-08","Hors Vacances","Vacances de printemps","Hors Vacances"]
[null,"2025-05-02","Vacances de printemps","Hors Vacances","Hors Vacances"]
[null,"2025-07-24","Vacances d'été","Vacances d'été","Vacances d'été"]
[null,"2025-08-03","Vacances d'été","Vacances d'été","Vacances d'été"]
[null,"2025-08-09","Vacances d'été","Vacances d'été","Vacances d'été"]
[null,"2025-08-16","Vacances d'été","Vacances d'été","Vacances d'été"]
[null,"2025-10-22","Vacances de la Toussaint","Vacances de la Toussaint","Vacances de la Toussaint"]
[null,"2025-12-22","Vacances de Noël","Vacances de Noël","Vacances de Noël"]
[null,"2025-08-18","Vacances d'été","Vacances d'été","Vacances d'été"]
[null,"2025-12-23","Vacances de Noël","Vacances de Noël","Vacances de Noël"]
[null,"2025-07-28","Vacances d'été","Vacances d'été","Vacances d'été"]
[null,"2025-08-29","Vacances d'été","Vacances d'été","Vacances d'été"]
[null,"2025-10-30","Vacances de la Toussaint","Vacances de la Toussaint","Vacances de la Toussaint"]
[null,"2025-01-02","Vacances de Noël","Vacances de Noël","Vacances de Noël"]
[null,"2025-02-23","Vacances d'hiver","Vacances d'hiver","Vacances d'hiver"]
[null,"2025-03-01","Vacances d'hiver","Hors Vacances","Vacances d'hiver"]
[null,"2025-03-03","Vacances d'hiver","Hors Vacances","Hors Vacances"]
[null,"2025-04-29","Vacances de printemps","Hors Vacances","Hors Vacances"]
[null,"2025-07-07","Vacances d'été","Vacances d'été","Vacances d'été"]
[null,"2025-07-16","Vacances d'été","Vacances d'été","Vacances d'été"]
[null,"2025-03-02","Vacances d'hiver","Hors Vacances","Vacances d'hiver"]
[null,"2025-04-26","Vacances de printemps","Hors Vacances","Vacances de printemps"]
[null,"2025-07-06","Vacances d'été","Vacances d'été","Vacances d'été"]
[null,"2025-07-26","Vacances d'été","Vacances d'été","Vacances d'été"]
[null,"2025-08-07","Vacances d'été","Vacances d'été","Vacances d'été"]
[null,"2025-08-10","Vacances d'été","Vacances d'été","Vacances d'été"]
[null,"2025-08-20","Vacances d'été","Vacances d'été","Vacances d'été"]
[null,"2025-08-27","Vacances d'été","Vacances d'été","Vacances d'été"]
[null,"2025-10-29","Vacances de la Toussaint","Vacances de la Toussaint","Vacances de la Toussaint"]
[null,"2025-04-16","Hors Vacances","Vacances de printemps","Vacances de printemps"]
[null,"2025-07-17","Vacances d'été","Vacances d'été","Vacances d'été"]
[null,"2025-08-14","Vacances d'été","Vacances d'été","Vacances d'été"]
[null,"2025-10-21","Vacances de la Toussaint","Vacances de la Toussaint","Vacances de la Toussaint"]
[null,"2025-02-12","Hors Vacances","Vacances d'hiver","Hors Vacances"]
[null,"2025-04-11","Hors Vacances","Vacances de printemps","Hors Vacances"]
[null,"2025-04-19","Vacances de printemps","Vacances de printemps","Vacances de printemps"]
[null,"2025-07-20","Vacances d'été","Vacances d'été","Vacances d'été"]
[null,"2025-07-05","Vacances d'été","Vacances d'été","Vacances d'été"]
[null,"2025-07-11","Vacances d'été","Vacances d'été","Vacances d'été"]
[null,"2025-04-05","Hors Vacances","Vacances de printemps","Hors Vacances"]
[null,"2025-07-13","Vacances d'été","Vacances d'été","Vacances d'été"]
[null,"2025-12-30","Vacances de Noël","Vacances de Noël","Vacances de Noël"]
[null,"2025-01-05","Vacances de Noël","Vacances de Noël","Vacances de Noël"]
[null,"2025-03-08","Vacances d'hiver","Hors Vacances","Hors Vacances"]
[null,"2025-04-12","Hors Vacances","Vacances de printemps","Vacances de printemps"]
[null,"2025-04-30","Vacances de printemps","Hors Vacances","Hors Vacances"]
[null,"2025-05-01","Vacances de printemps","Hors Vacances","Hors Vacances"]
[null,"2025-08-06","Vacances d'été","Vacances d'été","Vacances d'été"]
[null,"2025-08-24","Vacances d'été","Vacances d'été","Vacances d'été"]
[null,"2025-12-24","Vacances de Noël","Vacances de Noël","Vacances de Noël"]
[null,"2025-12-28","Vacances de Noël","Vacances de Noël","Vacances de Noël"]
[null,"2025-02-13","Hors Vacances","Vacances d'hiver","Hors Vacances"]
[null,"2025-04-17","Hors Vacances","Vacances de printemps","Vacances de printemps"]
[null,"2025-02-08","Hors Vacances","Vacances d'hiver","Hors Vacances"]
[null,"2025-02-09","Hors Vacances","Vacances d'hiver","Hors Vacances"]
[null,"2025-03-05","Vacances d'hiver","Hors Vacances","Hors Vacances"]
[null,"2025-04-07","Hors Vacances","Vacances de printemps","Hors Vacances"]
[null,"2025-04-20","Vacances de printemps","Vacances de printemps","Vacances de printemps"]
[null,"2025-08-04","Vacances d'été","Vacances d'été","Vacances d'été"]
[null,"2025-08-19","Vacances d'été","Vacances d'été","Vacances d'été"]
[null,"2025-10-28","Vacances de la Toussaint","Vacances de la Toussaint","Vacances de la Toussaint"]
[null,"2025-11-02","Vacances de la Toussaint","Vacances de la Toussaint","Vacances de la Toussaint"]
[null,"2025-12-21","Vacances de Noël","Vacances de Noël","Vacances de Noël"]
[null,"2025-08-26","Vacances d'été","Vacances d'été","Vacances d'été"]
[null,"2025-10-19","Vacances de la Toussaint","Vacances de la Toussaint","Vacances de la Toussaint"]
[null,"2025-10-26","Vacances de la Toussaint","Vacances de la Toussaint","Vacances de la Toussaint"]
[null,"2025-12-29","Vacances de Noël","Vacances de Noël","Vacances de Noël"]
[null,"2025-12-31","Vacances de Noël","Vacances de Noël","Vacances de Noël"]
[null,"2025-02-11","Hors Vacances","Vacances d'hiver","Hors Vacances"]
[null,"2025-04-10","Hors Vacances","Vacances de printemps","Hors Vacances"]
[null,"2025-04-21","Vacances de printemps","Vacances de printemps","Vacances de printemps"]
[null,"2025-04-28","Vacances de printemps","Hors Vacances","Hors Vacances"]
[null,"2025-07-10","Vacances d'été","Vacances d'été","Vacances d'été"]
[null,"2025-08-23","Vacances d'été","Vacances d'été","Vacances d'été"]
[null,"2025-08-28","Vacances d'été","Vacances d'été","Vacances d'été"]
[null,"2025-08-30","Vacances d'été","Vacances d'été","Vacances d'été"]
[null,"2025-08-31","Vacances d'été","Vacances d'été","Vacances d'été"]
[null,"2025-01-04","Vacances de Noël","Vacances de Noël","Vacances de Noël"]
[null,"2025-02-10","Hors Vacances","Vacances d'hiver","Hors Vacances"]
[null,"2025-02-27","Vacances d'hiver","Hors Vacances","Vacances d'hiver"]
[null,"2025-03-09","Vacances d'hiver","Hors Vacances","Hors Vacances"]
[null,"2025-04-09","Hors Vacances","Vacances de printemps","Hors Vacances"]
[null,"2025-04-14","Hors Vacances","Vacances de printemps","Vacances de printemps"]
[null,"2025-07-27","Vacances d'été","Vacances d'été","Vacances d'été"]
[null,"2025-08-08","Vacances d'été","Vacances d'été","Vacances d'été"]
[null,"2025-03-04","Vacances d'hiver","Hors Vacances","Hors Vacances"]
[null,"2025-07-22","Vacances d'été","Vacances d'été","Vacances d'été"]
[null,"2025-07-23","Vacances d'été","Vacances d'été","Vacances d'été"]
[null,"2025-08-17","Vacances d'été","Vacances d'été","Vacances d'été"]
[null,"2025-02-20","Hors Vacances","Vacances d'hiver","Vacances d'hiver"]
[null,"2025-07-21","Vacances d'été","Vacances d'été","Vacances d'été"]
[null,"2025-08-13","Vacances d'été","Vacances d'été","Vacances d'été"]
[null,"2025-08-15","Vacances d'été","Vacances d'été","Vacances d'été"]
[null,"2025-07-18","Vacances d'été","Vacances d'été","Vacances d'été"]
[null,"2025-08-05","Vacances d'été","Vacances d'été","Vacances d'été"]
[null,"2025-11-01","Vacances de la Toussaint","Vacances de la Toussaint","Vacances de la Toussaint"]
[null,"2025-02-21","Hors Vacances","Vacances d'hiver","Vacances d'hiver"]
[null,"2025-04-27","Vacances de printemps","Hors Vacances","Vacances de printemps"]
[null,"2025-07-25","Vacances d'été","Vacances d'été","Vacances d'été"]
[null,"2025-08-25","Vacances d'été","Vacances d'été","Vacances d'été"]